Cogmind - Beta 15 @@@ ROGUE MODE // 2025.06.26 @ 22:55:18 Player: EX-OCT Result: Destroyed by D-83 Annihilator with Micro-nuke Launcher Performance ------------- Evolutions (9) 4500 Regions Visited (32) 6400 Robots Destroyed (326) 1630 Value Destroyed (16641) 16641 Prototype IDs (84) 1680 Alien Tech Used (6) 1200 Bonus (23678) 23678 TOTAL SCORE: 55729 Bonus ------- High Alert Combat Kills 10705 Follower Combat Kills 2473 Entered Garrisons 200 Used RIF Installer 500 Network Hubs Disabled 400 Destroyed Z-Imprinter 1000 Met Zhirov 300 Built Enhanced Grunts 300 A7 Reached Mainframe 300 Hacked Protovariant 500 Met Sigix 2000 Met MAIN.C 5000 Cogmind --------- Core Integrity 0/1600 Matter 269/300 Energy 99/100 System Corruption 6% Temperature Cool (0) Movement Core (50) Location -1/Command Parts ------- > --- POWER (3) -------- (None) > --- PROPULSION (8) --- (None) > --- UTILITY (12) ----- (None) > --- WEAPON (2) ------- (None) > --- INVENTORY (5) ---- Transdimensional Reconstructor High-powered Transdimensional Reconstructor Peak State ------------ > --- POWER ------------ Light Antimatter Reactor Compact Particle Reactor Matter Drive > --- PROPULSION ------- Cooled Q-thruster Cooled Q-thruster Experimental Biomechanical Wings Experimental Biomechanical Wings Experimental Surge Thruster Experimental Surge Thruster Concept Fieldthrust Drive Concept Fieldthrust Drive > --- UTILITY ---------- Advanced Heat Sink Experimental Coolant Injector Zionite Metafield Generator Advanced Sensor Array Advanced Signal Interpreter Advanced Reaction Control System Concept Core Shell Concept Core Shell Improved Hacking Suite Advanced System Shield Ghost Barrier Improved Corruption Screen > --- WEAPON ----------- Sigix Broadsword > --- INVENTORY -------- Transdimensional Reconstructor High-powered Transdimensional Reconstructor Enhanced Nova Cannon Supercharged Sigix Terminator [Rating: 242] Favorites ----------- Power Compact Particle Reactor Engine Light Ion Engine Power Core Light Fission Core Reactor Compact Particle Reactor Propulsion Cooled Airjet Treads Light Treads Leg Zionite Composite Leg I Hover Unit Cooled Airjet Flight Unit Impulse Thruster Utility Improved System Shield Device Structural Scanner Storage Medium Storage Unit Processor Advanced Signal Interpreter Hackware Improved System Shield Protection Improved Utility Shielding Weapon Phasing Sabre Energy Gun Pulse Rifle Energy Cannon Nova Cannon Ballistic Gun Light Assault Rifle Ballistic Cannon Flak Cannon Launcher Mini Grenade Launcher Special Weapon RU-N14's Throwing Claymores Impact Weapon Hammer Slashing Weapon Phasing Sabre Piercing Weapon Force Lance Build | -11 -10 -9 -9 -8 -8 -8 -6 -6 -6 -6 -6 -5 -5 -5 -5 -5 -4 -4 -4 -4 -4 -4 -4 -4 -3 -3 -2 -2 -2 -2 -1 -1 ------- Run | Yrd Mat Mat Min Mat Sto Rec Fac Low Low Zio Dee Pro Fac Upp Upp Zhi Pro Fac Was Fac Ext Cet Arc Hub Res Tes Res Qua Frg Gar Acc Com Slots Evolved 18 | . . 2 . 2 . . 4 . . . . . 2 . . . . 2 . . . . . . 2 . 2 . . . 2 . Power 2 | . . . . . . . . . . . . . . . . . . . . . . . . . 1 . . . . . 1 . Propulsion 6 | . . 1 . . . . 1 . . . . . 1 . . . . 1 . . . . . . 1 . . . . . 1 . Utility 10 | . . 1 . 2 . . 3 . . . . . 1 . . . . 1 . . . . . . . . 2 . . . . . Weapon . | . . . . . . . . . . . . . . . . . . . . . . . . . . . . . . . . . Parts Attached 201 | 5 5 8 . 13 9 2 23 . 1 6 15 . 15 2 . 7 . 7 3 8 7 1 2 1 8 18 5 10 12 . 4 4 Power 18 | . 1 . . . 1 . 2 . . . 1 . 2 . . . . 1 . 1 2 . . . 1 1 . 3 1 . 1 . Engine 3 | . 1 . . . . . 1 . . . . . 1 . . . . . . . . . . . . . . . . . . . Core 5 | . . . . . 1 . 1 . . . . . 1 . . . . . . 1 1 . . . . . . . . . . . Reactor 10 | . . . . . . . . . . . 1 . . . . . . 1 . . 1 . . . 1 1 . 3 1 . 1 . Propulsion 77 | 2 2 2 . 6 3 1 9 . . . 5 . 7 . . 5 . 3 2 2 3 1 . 1 2 8 2 1 8 . 2 . Treads 2 | 2 . . . . . . . . . . . . . . . . . . . . . . . . . . . . . . . . Leg 2 | . . . . . . . . . . . 1 . 1 . . . . . . . . . . . . . . . . . . . Wheel . | . . . . . . . . . . . . . . . . . . . . . . . . . . . . . . . . . Hover 23 | . . 1 . 2 . . 5 . . . 4 . 5 . . 2 . 3 1 . . . . . . . . . . . . . Flight 50 | . 2 1 . 4 3 1 4 . . . . . 1 . . 3 . . 1 2 3 1 . 1 2 8 2 1 8 . 2 . Utility 79 | 1 1 4 . 5 3 1 9 . 1 4 7 . 6 1 . 2 . 3 . 4 2 . 2 . 5 5 3 4 3 . 1 2 Device 40 | 1 . 1 . 2 1 1 5 . . 1 2 . 2 1 . 1 . 1 . 4 2 . 2 . 5 1 2 3 . . . 2 Storage 5 | . . . . . . . . . . . 1 . 2 . . . . . . . . . . . . . 1 . 1 . . . Processor 10 | . 1 2 . 3 . . 2 . . . . . 1 . . . . . . . . . . . . . . 1 . . . . Hackware 14 | . . 1 . . 2 . 1 . 1 2 . . 1 . . . . 2 . . . . . . . 3 . . 1 . . . Protection 10 | . . . . . . . 1 . . 1 4 . . . . 1 . . . . . . . . . 1 . . 1 . 1 . Artifact . | . . . . . . . . . . . . . . . . . . . . . . . . . . . . . . . . . Weapon 27 | 2 1 2 . 2 2 . 3 . . 2 2 . . 1 . . . . 1 1 . . . . . 4 . 2 . . . 2 Energy Gun 6 | . 1 . . . 1 . . . . . 2 . . . . . . . . . . . . . . 2 . . . . . . Energy Cannon 2 | . . . . . . . . . . . . . . . . . . . . . . . . . . 1 . . . . . 1 Ballistic Gun 3 | 2 . . . . . . 1 . . . . . . . . . . . . . . . . . . . . . . . . . Ballistic Cannon 1 | . . . . . 1 . . . . . . . . . . . . . . . . . . . . . . . . . . . Launcher 3 | . . . . 1 . . . . . . . . . . . . . . 1 . . . . . . . . . . . . 1 Special Weapon 2 | . . . . . . . . . . 2 . . . . . . . . . . . . . . . . . . . . . . Impact Weapon 2 | . . 1 . . . . . . . . . . . . . . . . . . . . . . . . . 1 . . . . Slashing Weapon 7 | . . 1 . 1 . . 2 . . . . . . 1 . . . . . . . . . . . 1 . 1 . . . . Piercing Weapon 1 | . . . . . . . . . . . . . . . . . . . . 1 . . . . . . . . . . . . Special Melee Weapon . | . . . . . . . . . . . . . . . . . . . . . . . . . . . . . . . . . Unidentified Prototypes 44 | . . . . 1 . . 2 . . 2 10 . 3 . . 4 . . 1 1 . . . . 1 4 3 3 7 . 1 1 Parts Lost 83 | . 2 5 . 7 . 1 12 . . . 4 . 3 . . . 4 . . 2 1 1 1 1 6 2 . 5 2 . . 24 Power 10 | . . . . 1 . . 2 . . . . . 1 . . . . . . 1 . . . . 1 . . 1 . . . 3 Propulsion 36 | . 1 3 . 3 . 1 8 . . . 4 . 1 . . . 1 . . . . 1 . . 2 1 . 2 . . . 8 Utility 32 | . . 2 . 2 . . 1 . . . . . 1 . . . 3 . . 1 1 . 1 . 3 1 . 2 2 . . 12 Weapon 5 | . 1 . . 1 . . 1 . . . . . . . . . . . . . . . . 1 . . . . . . . 1 Highest Loss Streak 24 | . 1 2 . 3 . 1 6 . . . 2 . 2 . . . 4 . . 1 1 1 1 1 6 2 . 2 2 . . 24 To Critical Strikes . | . . . . . . . . . . . . . . . . . . . . . . . . . . . . . . . . . Average Backups 7 | . 3 4 5 4 4 4 4 5 4 5 5 5 6 9 10 9 9 9 8 8 9 9 9 9 8 9 8 8 8 8 6 3 Power . | . . 1 1 . . . . . . . . . 1 1 1 . . . 1 . 1 1 1 1 . . 1 . . . . . Propulsion . | . . . . . . . . . . . . . . 2 2 2 3 3 2 1 1 1 1 1 1 . . 1 1 1 . . Utility 2 | . 1 1 1 1 1 1 2 4 3 3 3 3 3 3 4 4 3 2 2 2 2 3 3 3 3 3 2 1 2 2 1 . Weapon 1 | . 1 1 2 1 2 2 1 1 1 1 1 1 . 1 2 1 1 1 1 2 2 2 2 2 2 2 3 2 2 2 1 . Tool/Special . | . . . . . . . . . . . . . . . . . . . . . . . . . . . . . . . . . Unused Backups 19 | . 1 1 . . . . 1 . . 1 1 . . . . 1 . . . . . . . . . 4 . 5 . . 2 2 Power 1 | . . . . . . . . . . . . . . . . . . . . . . . . . . 1 . . . . . . Propulsion . | . . . . . . . . . . . . . . . . . . . . . . . . . . . . . . . . . Utility 7 | . . . . . . . . . . 1 1 . . . . 1 . . . . . . . . . 2 . 2 . . . . Weapon 6 | . 1 1 . . . . . . . . . . . . . . . . . . . . . . . 1 . 1 . . 2 . Tool/Special 5 | . . . . . . . 1 . . . . . . . . . . . . . . . . . . . . 2 . . . 2 Average Slot Usage (%) 87 | . 66 55 44 68 85 99 83 93 93 92 95 93 95 100 97 92 91 83 86 85 92 89 87 86 76 82 94 91 88 95 92 75 Core 2 | . . . . . 7 9 3 6 6 6 1 . . 5 5 4 5 1 . 3 3 . . . 3 2 . . . . . . Reactor 2 | . . . . . . . . . . . 4 6 4 . . . . 2 5 . 1 5 5 5 . 5 8 7 8 8 9 8 Hover 8 | . . 4 . 1 . . 5 20 20 20 22 20 23 29 29 24 28 30 15 1 . . . . . . . . . . . . Flight 14 | . 8 6 . 14 19 26 12 . . . . . 1 . . 3 . . 12 23 25 21 21 21 18 21 30 29 26 30 31 24 Device 12 | . 14 9 11 8 6 9 11 13 13 13 8 6 7 11 11 9 10 9 10 13 14 15 13 15 13 12 16 17 19 21 20 15 Storage 2 | . . . . . . . . . . . . . 2 5 5 5 5 5 5 5 5 5 5 5 4 4 4 4 4 4 3 . Processor 11 | . 7 15 22 33 22 18 13 13 13 13 13 13 11 11 11 11 11 10 10 10 10 10 10 10 9 5 4 4 8 8 8 7 Hackware 17 | . . 2 . . 16 18 19 20 20 19 20 20 21 17 17 17 16 17 21 21 21 21 21 21 19 20 21 18 14 13 12 10 Protection 3 | . . . . . . . 4 6 6 6 9 13 5 5 5 5 4 . . . . . . . . 2 4 3 1 4 5 5 Slashing Weapon 5 | . . . 11 9 9 9 7 13 13 11 6 6 4 5 5 5 5 5 5 5 4 5 5 5 4 4 4 4 4 4 4 2 Peak Build Rating 242 | 4 9 11 8 27 31 30 53 52 54 67 83 70 85 82 80 85 76 93 112 112 113 112 111 111 116 147 160 188 210 210 234 242 Average Rating 85 | 3 5 7 8 19 27 29 43 52 52 58 73 70 79 79 76 74 75 86 100 104 110 111 108 106 101 120 155 174 188 210 222 179 On Entrance 86 | . 4 7 8 8 20 28 30 52 52 54 62 70 70 78 80 73 76 63 93 104 111 112 111 111 105 112 147 157 188 210 210 234 Naked Turns 12 | . . . . . . . . . . . . . . . . . . . . . . . . . . . . . . . . 12 Heaviest Build 68 | 3 7 4 3 7 11 11 14 14 14 21 27 19 35 33 33 25 25 29 45 38 39 37 37 37 44 55 53 54 54 54 57 68 Greatest Support 63 | 3 8 4 3 14 14 13 28 28 28 28 47 33 43 41 41 43 35 49 49 41 42 42 42 42 49 54 60 60 63 63 60 60 Greatest Overweight (x) 4 | . 1 . . . . . 3 . . . 1 . . . . 4 . . 1 1 1 . . . . 1 . 1 1 . 1 1 Average Overweight (x) . | . . . . . . . . . . . . . . . . . . . . . . . . . . . . . . . . . Largest Inventory Capacity 10 | 5 5 5 5 5 5 5 5 5 5 5 5 5 10 10 10 10 10 10 10 10 10 10 10 10 10 10 10 10 10 10 10 5 Average Capacity 7 | 5 5 5 5 5 5 5 5 5 5 5 5 5 7 10 10 10 10 10 10 10 10 10 10 10 10 10 10 10 10 10 8 5 Most Carried 10 | 2 5 5 5 5 5 5 5 5 5 5 5 5 10 10 10 10 10 10 10 10 10 10 10 10 10 10 10 10 10 9 8 5 Average Carried 7 | . 3 4 5 4 4 4 4 5 4 4 4 5 6 9 10 9 9 9 8 9 9 9 9 9 7 9 9 9 9 9 6 3 Final Capacity 10 | 5 5 5 5 5 5 5 5 5 5 5 5 5 10 10 10 10 10 10 10 10 10 10 10 10 10 10 10 10 10 10 5 5 Final Carried 10 | 2 5 5 5 5 5 5 5 5 5 5 5 5 8 10 10 10 10 10 8 9 10 9 9 10 10 10 10 9 9 9 5 2 Class Distribution -------------------- 34% | Hacker-Scout 14% | Hacker-Sprinter 11% | Hacker-Mutant 9% | Mutant 6% | Scout 6% | Commander-Scout 4% | Scavenger-Mutant 4% | Wizard-Ninja Dominant Class ---------------- Mutant | -10/Materials Scavenger-Mutant | -9/Materials Scout | -9/Mines Mutant | -8/Materials Hacker-Sprinter | -8/Storage Hacker-Sprinter | -8/Recycling Hacker-Scout | -6/Factory Hacker-Scout | -6/Lower Caves Hacker-Scout | -6/Lower Caves Scout | -6/Zion Mutant | -6/Deep Caves Mutant | -5/Proximity Caves Hacker-Mutant | -5/Factory Hacker-Scout | -5/Upper Caves Hacker-Scout | -5/Upper Caves Hacker-Scout | -5/Zhirov Hacker-Scout | -4/Proximity Caves Hacker-Mutant | -4/Factory Hacker-Sprinter | -4/Waste Hacker-Scout | -4/Factory Hacker-Scout | -4/Extension Hacker-Scout | -4/Cetus Commander-Scout | -4/Archives Commander-Scout | -4/Hub_04(d) Hacker-Sprinter | -3/Research Hacker-Sprinter | -3/Testing Wizard-Ninja | -2/Research Hacker-Scout | -2/Quarantine Hacker-Scout | -2/Protoforge Hacker-Scout | -2/Garrison Hacker-Scout | -1/Access Hacker-Scout | -1/Command Resources | -11 -10 -9 -9 -8 -8 -8 -6 -6 -6 -6 -6 -5 -5 -5 -5 -5 -4 -4 -4 -4 -4 -4 -4 -4 -3 -3 -2 -2 -2 -2 -1 -1 ----------- Run | Yrd Mat Mat Min Mat Sto Rec Fac Low Low Zio Dee Pro Fac Upp Upp Zhi Pro Fac Was Fac Ext Cet Arc Hub Res Tes Res Qua Frg Gar Acc Com Matter Collected 3707 | 290 293 55 25 128 100 20 242 25 20 64 181 159 220 36 19 84 . 121 60 120 448 33 50 . . 196 49 460 15 . 75 119 Remotely . | . . . . . . . . . . . . . . . . . . . . . . . . . . . . . . . . . Salvage Created 4950 | 95 649 133 . 291 110 78 754 . . . 169 . 581 . 21 84 . 349 . 154 568 34 78 . . 284 49 243 113 . 75 38 Parts 278 | 6 32 6 . 22 12 11 34 . . . 16 . 26 . 4 1 . 27 . 10 20 2 5 . . 19 2 11 5 . 4 3 Haulers Intercepted 3 | . 1 . . 1 . . . . . . . . . . . . . . . 1 . . . . . . . . . . . . Recyclers Shooed 3 | . . . . . . . 1 . . . . . 1 . . . . . . . 1 . . . . . . . . . . . Parts Field Recycled . | . . . . . . . . . . . . . . . . . . . . . . . . . . . . . . . . . Retrieved Matter . | . . . . . . . . . . . . . . . . . . . . . . . . . . . . . . . . . Parts Self-Destructed 12 | . . . . . . . . 4 . . . 5 . . 2 1 . . . . . . . . . . . . . . . . Prevented 4 | . . . . . . . . 3 . . . . . . 1 . . . . . . . . . . . . . . . . . Kills | -11 -10 -9 -9 -8 -8 -8 -6 -6 -6 -6 -6 -5 -5 -5 -5 -5 -4 -4 -4 -4 -4 -4 -4 -4 -3 -3 -2 -2 -2 -2 -1 -1 ------- Run | Yrd Mat Mat Min Mat Sto Rec Fac Low Low Zio Dee Pro Fac Upp Upp Zhi Pro Fac Was Fac Ext Cet Arc Hub Res Tes Res Qua Frg Gar Acc Com Combat Hostiles Destroyed 235 | . 10 3 . 8 3 1 9 . . . 6 . 4 . 5 . . . . . 4 . . . . 4 . 1 . . . 177 Melee 35 | . . 2 . 8 3 1 8 . . . 1 . 4 . . . . . . . 3 . . . . 4 . 1 . . . . Guns 11 | . 10 . . . . . 1 . . . . . . . . . . . . . . . . . . . . . . . . . AOE 188 | . . . . . . . . . . . 5 . . . 5 . . . . . 1 . . . . . . . . . . 177 Classes Destroyed 23 | 2 6 . . 1 1 . 2 . . . 1 . . . . . . . . . 1 . . . . . . . . . . 9 Worker 11 | . . . . . . . 3 . . . . . 1 . . . . 2 . . 1 . . . . . . 2 . . 1 1 Builder 16 | . . . . . 1 2 2 . . . . . 1 . . . . 5 . 1 4 . . . . . . . . . . . Tunneler 2 | 1 . . . . . . . . . . . . . . . . . . . . 1 . . . . . . . . . . . Hauler 3 | . 1 . . 1 . . . . . . . . . . . . . . . 1 . . . . . . . . . . . . Recycler 15 | 1 2 1 . . . . 2 . . . . . 2 . . . . 1 . . 3 . . . . 1 . 1 . . . 1 Carrier 18 | . . . . . . . . . . . . . . . . . . . . . . . . . . . . . . . . 18 Mechanic 2 | . 1 . . . . . . . . . . . 1 . . . . . . . . . . . . . . . . . . . Operator 12 | . 2 . . 1 . . 2 . . . . . . . . . . . . 3 . . 2 . . 1 . . 1 . . . Watcher 17 | . 1 1 . 1 . . 1 . . . . . 2 . . . . 1 . . . 1 . . . . 1 1 2 . 2 3 Swarmer 50 | . 3 3 . 6 2 . 4 . . . . . 3 . 5 . . . . . . . . . . 4 . . . . . 20 Cutter 6 | . . . . . . . . . . . . . . . . . . . . . . . . . . . . . . . . 6 Saboteur 6 | . . . . . . . . . . . . . . . . . . . . . . . . . . . . . . . . 6 Grunt 58 | . 7 . . . . . 1 . . . . . . . . . . . . . 1 . . . . . . . . . . 49 Brawler 11 | . . . . . . . . . . . . . . . . . . . . . . . . . . . . . . . . 11 Duelist 12 | . . . . . . . . . . . . . . . . . . . . . . . . . . . . . . . . 12 Protector 6 | . . . . . . . . . . . . . . . . . . . . . . . . . . . . . . . . 6 Sentry 8 | . . . . 2 1 1 . . . . . . 1 . . . . . . . 2 . . . . . . . . . . 1 Demolisher 5 | . . . . . . . . . . . . . . . . . . . . . . . . . . . . . . . . 5 Specialist 12 | . . . . . . . . . . . . . . . . . . . . . . . . . . . . . . . . 12 Hunter 24 | . . . . . . . . . . . . . . . . . . . . . . . . . . . . . . . . 24 Programmer 30 | . . . . . . . 4 . . . . . . . . . . . . . . . . . . . . 1 . . . 25 Behemoth 1 | . . . . . . . . . . . . . . . . . . . . . 1 . . . . . . . . . . . Z-Technician 5 | . . . . . . . . . . . 5 . . . . . . . . . . . . . . . . . . . . . Assembled 5 | . . . . . . . . . . . 5 . . . . . . . . . . . . . . . . . . . . . Best Kill Streak 199 | 2 10 2 . 4 3 2 3 . . . 5 . 3 . 5 . . 8 . 2 7 1 1 . . 5 1 2 2 . 2 199 Combat Bots Only 177 | . 5 2 . 4 3 1 3 . . . 3 . 2 . 5 . . . . . 1 . . . . 4 . 1 . . . 177 Max Kills in Single Turn 199 | 1 2 1 . 1 1 1 1 . . . 2 . 1 . 4 . . 1 . 1 3 1 1 . . 1 1 1 1 . 1 199 Gunslinging . | . . . . . . . . . . . . . . . . . . . . . . . . . . . . . . . . . Exploded 177 | . . . . . . . . . . . 2 . . . 4 . . . . . 1 . . . . . . . . . . 177 Melee 1 | . . 1 . 1 1 1 1 . . . 1 . 1 . . . . . . . 1 . . . . 1 . 1 . . . . Uniques/NPCs Destroyed 1 | . . . . . . . . . . . 1 . . . . . . . . . . . . . . . . . . . . . Z-Imprinter (-6/Deep Caves) Combat | -11 -10 -9 -9 -8 -8 -8 -6 -6 -6 -6 -6 -5 -5 -5 -5 -5 -4 -4 -4 -4 -4 -4 -4 -4 -3 -3 -2 -2 -2 -2 -1 -1 -------- Run | Yrd Mat Mat Min Mat Sto Rec Fac Low Low Zio Dee Pro Fac Upp Upp Zhi Pro Fac Was Fac Ext Cet Arc Hub Res Tes Res Qua Frg Gar Acc Com Hostile Shots Fired 793 | . 72 65 1 84 14 8 126 3 . . 25 3 34 3 8 . 3 2 . 17 42 . 2 4 42 21 31 37 38 35 . 73 Missed 342 | . 24 21 1 37 7 2 51 2 . . 13 2 12 1 3 . 2 . . 10 19 . 1 1 16 7 23 23 23 16 . 25 Hits 451 | . 48 44 . 47 7 6 75 1 . . 12 1 22 2 5 . 1 2 . 7 23 . 1 3 26 14 8 14 15 19 . 48 Melee 4 | . . . . . . . 1 . . . 1 . . . . . . . . . . . . . . . . . 2 . . . Projectile 447 | . 48 44 . 47 7 6 74 1 . . 11 1 22 2 5 . 1 2 . 7 23 . 1 3 26 14 8 14 13 19 . 48 AOE 6 | . . . . . . . . . . . . . . . . . . . . . . . . . . . . 1 1 . . 4 Critical Strikes 9 | . . 1 . . . . 2 . . . . . . . . . . . . . . 1 . . 1 . . . 1 . . 3 Actively Blocked 1 | . . . . . . . 1 . . . . . . . . . . . . . . . . . . . . . . . . . Part Disruptions 2 | . . . . . . . . . . . . . . . . . . . . . . . . . . . . . . . . 2 Damage Taken 12656 | . 583 482 . 552 91 82 1148 18 . . 314 19 675 39 88 . 304 40 . 206 550 57 52 86 713 320 157 1890 330 369 . 3491 Core 4454 | . 193 319 . 300 42 42 412 . . . 27 19 162 22 20 . . 40 . 24 104 . . 42 219 47 25 754 4 5 . 1632 Absorbed by Shields 254 | . . . . . . . . . . . . . . . . . . . . . 119 . . . . . . . 75 60 . . Redirected to Shielding 340 | . . . . . . . 17 . . . . . 12 . 11 . . . . . . . . . . . . . 28 35 . 237 Regen/Repaired (Parts) 1505 | . . . . 22 . . 80 . . . . . 39 . . . . 38 208 10 . . . . . 163 . 370 321 100 154 . Core Remaining (%) 55 | 100 22 . 20 . . 30 . . . . . 46 . . . . 79 . . . . . . 81 . 79 . . . 45 . . Volleys Fired 132 | 10 81 1 . . . . 3 . . . 15 . . . 2 . . . . . 4 . . . . 8 . . . . . 8 Largest 2 | 2 2 2 . . . . 1 . . . 1 . . . 1 . . . . . 1 . . . . 1 . . . . . 1 Hottest 120 | 40 60 60 . . . . 23 . . . 30 . . . . . . . . . 20 . . . . 113 . . . . . 120 Shots Fired 174 | 20 112 2 . . . . 3 . . . 15 . . . 2 . . . . . 4 . . . . 8 . . . . . 8 Gun 138 | 20 112 2 . . . . 3 . . . . . . . . . . . . . . . . . . 1 . . . . . . Cannon 14 | . . . . . . . . . . . . . . . . . . . . . . . . . . 7 . . . . . 7 Launcher 20 | . . . . . . . . . . . 15 . . . . . . . . . 4 . . . . . . . . . . 1 Special 2 | . . . . . . . . . . . . . . . 2 . . . . . . . . . . . . . . . . . Kinetic 127 | 20 103 1 . . . . 3 . . . . . . . . . . . . . . . . . . . . . . . . . Thermal 26 | . 9 1 . . . . . . . . . . . . . . . . . . . . . . . 8 . . . . . 8 Explosive 21 | . . . . . . . . . . . 15 . . . 2 . . . . . 4 . . . . . . . . . . . Electromagnetic . | . . . . . . . . . . . . . . . . . . . . . . . . . . . . . . . . . Robot Hit Streak 12 | 7 12 3 . . . . 2 . . . 1 . . . 3 . . . . . 4 . . . . . . . . . . 5 Robot Miss Streak 6 | 1 6 . . . . . 1 . . . 2 . . . . . . . . . . . . . . . . . . . . . Penetration Max . | . . . . . . . . . . . . . . . . . . . . . . . . . . . . . . . . . Secondary Targets . | . . . . . . . . . . . . . . . . . . . . . . . . . . . . . . . . . Shots Hit Robots 282 | 15 72 7 . 22 6 7 38 . . . 10 . 25 . 2 3 . 14 . 8 15 1 7 . . 6 5 9 4 . 4 2 Core Hits 262 | 5 34 3 . 9 3 2 15 . . . 16 . 8 . 5 . . 4 . 2 21 1 3 . . 6 1 5 2 . 2 115 Critical Kills 1 | . . 1 . . . . . . . . . . . . . . . . . . . . . . . . . . . . . . Critical Parts Destroyed 2 | . 1 1 . . . . . . . . . . . . . . . . . . . . . . . . . . . . . . Critical Strikes 15 | . 1 2 . . 1 . 2 . . . 1 . 2 . . . . . . . 3 . . . . . 1 2 . . . . Destroy 1 | . 1 . . . . . . . . . . . . . . . . . . . . . . . . . . . . . . . Smash 2 | . . 2 . . . . . . . . . . . . . . . . . . . . . . . . . . . . . . Sever 10 | . . . . . 1 . 2 . . . 1 . 2 . . . . . . . 1 . . . . . 1 2 . . . . Impale 2 | . . . . . . . . . . . . . . . . . . . . . 2 . . . . . . . . . . . Melee Attacks 530 | . . 27 . 54 20 10 91 4 4 . 13 . 53 7 3 3 10 18 . 33 25 2 8 7 23 27 25 48 8 1 4 2 Impact 26 | . . 26 . . . . . . . . . . . . . . . . . . . . . . . . . . . . . . Slashing 475 | . . 1 . 54 20 10 91 4 4 . 13 . 53 7 3 3 10 18 . 31 6 1 2 6 23 27 25 48 8 1 4 2 Piercing 29 | . . . . . . . . . . . . . . . . . . . . 2 19 1 6 1 . . . . . . . . Sneak Attacks 60 | . . 1 . 2 1 3 7 . . . 5 . 8 . . . . 11 . 5 5 . 2 . . 2 1 4 1 . 2 . Combat Hostiles 4 | . . . . . . 1 . . . . . . . . . . . . . 1 2 . . . . . . . . . . . Follow-up Attacks 7 | . . . . . . . 3 . . . . . . . . . . . . . 2 . 1 . . 1 . . . . . . Damage Inflicted 274083 | 142 831 203 . 903 254 355 1749 . . . 1373 . 1492 . 644 281 . 1168 . 843 2152 64 384 . . 479 299 833 499 . 563 258572 Guns 1010 | 142 831 12 . . . . 25 . . . . . . . . . . . . . . . . . . . . . . . . . Cannons 46 | . . . . . . . . . . . . . . . . . . . . . . . . . . 46 . . . . . . Explosions 260821 | . . . . . . . . . . . 629 . . . 568 . . . . . 1146 . . . . . . . . . . 258478 Melee 12099 | . . 185 . 903 254 355 1724 . . . 744 . 1492 . . 281 . 1168 . 843 1006 64 384 . . 433 299 833 499 . 563 69 Ramming 31 | . . 6 . . . . . . . . . . . . . . . . . . . . . . . . . . . . . 25 Kinetic 947 | 142 780 . . . . . 25 . . . . . . . . . . . . . . . . . . . . . . . . . Thermal 258587 | . 51 12 . . . . . . . . . . . . . . . . . . . . . . . 46 . . . . . 258478 Explosive 2343 | . . . . . . . . . . . 629 . . . 568 . . . . . 1146 . . . . . . . . . . . Electromagnetic . | . . . . . . . . . . . . . . . . . . . . . . . . . . . . . . . . . Impact 185 | . . 185 . . . . . . . . . . . . . . . . . . . . . . . . . . . . . . Slashing 10825 | . . . . 903 254 355 1724 . . . 744 . 1492 . 76 281 . 1168 . 843 243 . 46 . . 433 299 833 499 . 563 69 Piercing 1165 | . . . . . . . . . . . . . . . . . . . . . 763 64 338 . . . . . . . . . Highest Corruption 15 | . . . . . . . 7 7 7 7 . . 1 1 . . 15 . . 3 4 4 4 . . 1 . 11 11 11 . 6 Average Corruption 5 | . . . . . . . 4 7 7 7 . . 1 1 . . 15 . . 3 3 4 2 . . 1 . 8 11 11 . 5 Corruption Purged 5 | . . . . . . . . . . . . . . 1 . . . . . . . . 4 . . . . . . . . . Corruption Blocked 15 | . . . . . . . . . . . . . . . . . . . . . . . . . . . . . 3 . 4 8 Effects 91 | . . . . . . . 13 8 3 3 . . . . . . 1 . . . 25 7 3 . . . . 19 6 2 . 1 Message Errors 25 | . . . . . . . 6 4 1 . . . . . . . . . . . 6 1 1 . . . . 4 . 1 . 1 Matter Fused 22 | . . . . . . . 2 . 1 2 . . . . . . 1 . . . 8 2 1 . . . . 4 1 . . . Heat Flow Errors 12 | . . . . . . . 1 2 . . . . . . . . . . . . 2 1 . . . . . 5 1 . . . Energy Discharges 7 | . . . . . . . . . . 1 . . . . . . . . . . 3 1 . . . . . 1 1 . . . Parts Rejected 4 | . . . . . . . 1 . . . . . . . . . . . . . 2 . . . . . . 1 . . . . Parts Fused 1 | . . . . . . . 1 . . . . . . . . . . . . . . . . . . . . . . . . . Data Loss (minor) 14 | . . . . . . . 1 2 . . . . . . . . . . . . 4 1 1 . . . . 2 2 1 . . Data Loss (major) 2 | . . . . . . . . . . . . . . . . . . . . . . 1 . . . . . 1 . . . . Alerts 2 | . . . . . . . 1 . 1 . . . . . . . . . . . . . . . . . . . . . . . Misdirections 2 | . . . . . . . . . . . . . . . . . . . . . . . . . . . . 1 1 . . . Overload Shots . | . . . . . . . . . . . . . . . . . . . . . . . . . . . . . . . . . Overflow Damage 35893 | . . 40 . 90 34 20 308 . . . 308 . 321 . 24 229 . 471 . 434 128 . 108 . . 54 23 196 204 . 128 32773 Projectiles 6 | . . . . . . . . . . . . . . . 6 . . . . . . . . . . . . . . . . . Explosions 32850 | . . . . . . . . . . . 29 . . . 18 . . . . . 30 . . . . . . . . . . 32773 Melee 3037 | . . 40 . 90 34 20 308 . . . 279 . 321 . . 229 . 471 . 434 98 . 108 . . 54 23 196 204 . 128 . Knockbacks . | . . . . . . . . . . . . . . . . . . . . . . . . . . . . . . . . . Impact . | . . . . . . . . . . . . . . . . . . . . . . . . . . . . . . . . . Kinetic . | . . . . . . . . . . . . . . . . . . . . . . . . . . . . . . . . . Secondary . | . . . . . . . . . . . . . . . . . . . . . . . . . . . . . . . . . Self-Inflicted Damage 1298 | . . 3 . . . . . . . . . . . . . . . . . . . . . . . . . . . . . 1295 Shots 1 | . . . . . . . . . . . . . . . . . . . . . . . . . . . . . . . . 1 Rammed 1 | . . 1 . . . . . . . . . . . . . . . . . . . . . . . . . . . . . . Targets Rammed 1 | . . 1 . . . . . . . . . . . . . . . . . . . . . . . . . . . . . . Kicked . | . . . . . . . . . . . . . . . . . . . . . . . . . . . . . . . . . Crushed . | . . . . . . . . . . . . . . . . . . . . . . . . . . . . . . . . . Highest Temperature 524 | . 24 7 . . . . 90 216 . . 17 . . . . . . . . . 199 143 . . 18 368 276 524 156 182 16 104 Average Temperature 85 | . 8 5 . . . . 54 94 . . 8 . . . . . . . . . 104 75 . . 8 90 70 118 78 66 7 32 Received Heat Transfer 1400 | . 288 126 . 144 27 27 99 9 . . 63 . 72 . 36 . . . . 9 97 . 9 . 196 . 27 . 36 27 . 108 Effects 13 | . . . . . . . . . . . . . . . . . . . . . . . . . . . . 13 . . . . Shutdowns 3 | . . . . . . . . . . . . . . . . . . . . . . . . . . . . 3 . . . . Energy Bleed 2 | . . . . . . . . . . . . . . . . . . . . . . . . . . . . 2 . . . . Interference 3 | . . . . . . . . . . . . . . . . . . . . . . . . . . . . 3 . . . . Matter Decay 1 | . . . . . . . . . . . . . . . . . . . . . . . . . . . . 1 . . . . Damage (minor) 2 | . . . . . . . . . . . . . . . . . . . . . . . . . . . . 2 . . . . Damage (core) 2 | . . . . . . . . . . . . . . . . . . . . . . . . . . . . 2 . . . . Siege Activations . | . . . . . . . . . . . . . . . . . . . . . . . . . . . . . . . . . Martial Activations . | . . . . . . . . . . . . . . . . . . . . . . . . . . . . . . . . . Shielding Activations . | . . . . . . . . . . . . . . . . . . . . . . . . . . . . . . . . . Robots Disrupted . | . . . . . . . . . . . . . . . . . . . . . . . . . . . . . . . . . Combat Hostiles . | . . . . . . . . . . . . . . . . . . . . . . . . . . . . . . . . . Robots Corrupted 1 | . . 1 . . . . . . . . . . . . . . . . . . . . . . . . . . . . . . Combat Hostiles 1 | . . 1 . . . . . . . . . . . . . . . . . . . . . . . . . . . . . . Parts Fried 2 | . . 2 . . . . . . . . . . . . . . . . . . . . . . . . . . . . . . Impact Corruptions 4 | . . 4 . . . . . . . . . . . . . . . . . . . . . . . . . . . . . . Robots Melted . | . . . . . . . . . . . . . . . . . . . . . . . . . . . . . . . . . Combat Hostiles . | . . . . . . . . . . . . . . . . . . . . . . . . . . . . . . . . . Parts Melted . | . . . . . . . . . . . . . . . . . . . . . . . . . . . . . . . . . Heat Transferred 1373 | . 125 25 . . . . . . . . . . . . . . . . . . . . . . . 37 . . . . . 1186 Parts Sabotaged . | . . . . . . . . . . . . . . . . . . . . . . . . . . . . . . . . . Parts Stolen . | . . . . . . . . . . . . . . . . . . . . . . . . . . . . . . . . . Parts Stripped . | . . . . . . . . . . . . . . . . . . . . . . . . . . . . . . . . . Power Chain Reactions . | . . . . . . . . . . . . . . . . . . . . . . . . . . . . . . . . . Alert | -11 -10 -9 -9 -8 -8 -8 -6 -6 -6 -6 -6 -5 -5 -5 -5 -5 -4 -4 -4 -4 -4 -4 -4 -4 -3 -3 -2 -2 -2 -2 -1 -1 ------- Run | Yrd Mat Mat Min Mat Sto Rec Fac Low Low Zio Dee Pro Fac Upp Upp Zhi Pro Fac Was Fac Ext Cet Arc Hub Res Tes Res Qua Frg Gar Acc Com Maximum Alert Level 5 | . 1 1 . . 1 . 2 . . . . . 2 . . . . . . . 2 1 1 . 1 . . 1 2 2 1 5 Low Security (%) 68 | 100 72 78 100 100 92 100 43 . . . . . 53 . . . . 100 100 100 69 15 54 100 68 100 100 30 15 . 73 21 Level 1 23 | . 27 21 . . 7 . 34 . . . . . 39 . . . . . . . 13 84 45 . 31 . . 69 41 84 26 15 Level 2 7 | . . . . . . . 21 . . . . . 7 . . . . . . . 16 . . . . . . . 42 16 . 34 Level 3 . | . . . . . . . . . . . . . . . . . . . . . . . . . . . . . . . . . Level 4 . | . . . . . . . . . . . . . . . . . . . . . . . . . . . . . . . . . Level 5 . | . . . . . . . . . . . . . . . . . . . . . . . . . . . . . . . . 28 High Security . | . . . . . . . . . . . . . . . . . . . . . . . . . . . . . . . . . Max Security . | . . . . . . . . . . . . . . . . . . . . . . . . . . . . . . . . . Peak Influence 518 | 5 245 308 119 195 216 120 481 . . . . . 417 . . . . 73 60 191 518 281 231 173 242 176 175 300 491 464 278 432 Initial 374 | . . 31 114 46 72 29 200 . . . . . . . . . . 31 22 . 93 237 72 66 59 47 24 98 168 374 278 131 Average 155 | . 115 90 112 121 87 65 270 . . . . . 155 . . . . 14 13 123 183 230 174 111 116 97 27 210 340 388 180 332 Influence Increases 18601 | 10 437 453 15 402 320 151 1105 30 . . . 90 736 . 155 10 60 188 70 681 1524 174 229 268 390 438 311 562 431 90 127 9144 Destroy 0b10 Robot/C 5780 | . 200 60 . 160 60 20 180 . . . . 40 180 . 100 . . 20 . 100 560 80 80 60 . 80 . 20 . . . 3780 Destroy 0b10 Robot/NC 460 | 10 35 10 . 15 5 10 50 . . . . . 40 . . 10 . 45 . 45 55 5 10 . . 5 5 20 15 . 15 55 Destroy Leader 410 | . 54 12 . 44 20 . 52 . . . . 20 36 . 10 . . 12 . 32 44 . . 20 . 10 2 12 4 . 4 22 Allied During Kill 833 | . . . . . . . 2 . . . . 30 58 . . . . 4 . 74 494 81 90 . . . . . . . . . Trap Triggered on 0b10 10 | . . . . . . . 10 . . . . . . . . . . . . . . . . . . . . . . . . . Successful Hack 878 | . 27 29 . 47 15 28 17 . . . . . 89 . . . . 28 . 30 35 . . . 18 127 64 48 67 . 93 116 Select Force Hacks 310 | . 60 . . 30 30 90 . . . . . . . . . . . . . . . . . 100 . . . . . . . . Disable Machine 615 | . . 15 . 30 30 . 15 . . . . . 60 . . . . 15 . 15 15 . 30 30 30 75 . 150 30 . . 75 Anti-Garrison Action 50 | . . . . . . . . . . . . . . . . . . . . . . . . . . . . . . . . 50 Destroy Structure 5590 | . 1 12 . 16 10 3 39 . . . . . 48 . . . . 4 70 160 156 8 4 28 42 36 60 72 . . . 4821 Advance Influence 200 | . . . . . . . 200 . . . . . . . . . . . . . . . . . . . . . . . . . Partial Spotted 870 | . 15 45 . 30 45 . 75 . . . . . 30 . . . . . . 30 120 . 15 15 15 45 90 150 75 30 . 45 Lose Combat Pursuer 2595 | . 45 270 15 30 105 . 465 30 . . . . 195 . 45 . 60 60 . 195 45 . . 15 285 60 90 90 240 60 15 180 Influence Decreases 9656 | 10 363 233 190 349 416 227 1016 99 20 . . 90 500 168 64 169 10 175 133 490 1290 418 219 345 420 477 181 437 232 125 386 404 Entered New Map 2029 | . . 43 180 73 100 47 . 34 4 . . . . 88 14 159 . 19 41 . 98 188 109 125 55 37 21 77 132 125 186 74 Time Decay 4058 | 10 193 140 10 206 110 170 416 65 16 . . 90 320 80 50 10 10 116 52 212 494 120 80 40 155 270 113 310 80 . 50 70 Search Patrol Dispatched 150 | . . . . . . . . . . . . . 150 . . . . . . . . . . . . . . . . . . . Lost Part 720 | . 20 50 . 70 . 10 120 . . . . . 10 . . . . . . 10 10 10 10 10 60 20 . 50 20 . . 240 Lost Ally 878 | . . . . . . . 30 . . . . . 20 . . . . 40 40 268 170 100 20 170 . . . . . . . 20 Purge Threat 1821 | . 150 . . . 206 . 450 . . . . . . . . . . . . . 518 . . . 150 150 47 . . . 150 . Squads Dispatched 54 | . 4 3 . 2 1 . 6 . . . . . 7 . . . . 3 . 6 3 . . 5 2 4 3 2 1 . . 2 Investigation 16 | . 3 . . 1 1 . 1 . . . . . 3 . . . . . . . . . . 4 . 1 . 1 1 . . . Extermination 12 | . . . . . . . 2 . . . . . 2 . . . . . . 2 . . . . 1 2 2 . . . . 1 Reinforcement 22 | . 1 3 . 1 . . 2 . . . . . 2 . . . . 2 . 4 3 . . 1 1 . 1 1 . . . . Assault 2 | . . . . . . . . . . . . . . . . . . . . . . . . . . 1 . . . . . 1 Garrison 2 | . . . . . . . 1 . . . . . . . . . . 1 . . . . . . . . . . . . . . Intercept . | . . . . . . . . . . . . . . . . . . . . . . . . . . . . . . . . . Searches Triggered 1 | . . . . . . . . . . . . . 1 . . . . . . . . . . . . . . . . . . . Construction Impeded 4 | . . 1 . . . . . . . . . . . . . . . 1 . . 2 . . . . . . . . . . . Haulers Reinforced 1 | . . . . . . . 1 . . . . . . . . . . . . . . . . . . . . . . . . . Active Scanning Responses . | . . . . . . . . . . . . . . . . . . . . . . . . . . . . . . . . . Cargo Convoy Interrupts . | . . . . . . . . . . . . . . . . . . . . . . . . . . . . . . . . . Stealth | -11 -10 -9 -9 -8 -8 -8 -6 -6 -6 -6 -6 -5 -5 -5 -5 -5 -4 -4 -4 -4 -4 -4 -4 -4 -3 -3 -2 -2 -2 -2 -1 -1 --------- Run | Yrd Mat Mat Min Mat Sto Rec Fac Low Low Zio Dee Pro Fac Upp Upp Zhi Pro Fac Was Fac Ext Cet Arc Hub Res Tes Res Qua Frg Gar Acc Com Distress Signals 30 | . 2 . . 3 . . 2 . . . . . 2 . . . . 2 . 4 1 1 1 3 2 . 1 2 1 . 2 1 Communications Jammed 14 | . . . . . . . . . . . . . . . . . . . . . . . . . . . 14 . . . . . Distress Signals 14 | . . . . . . . . . . . . . . . . . . . . . . . . . . . 14 . . . . . Times Spotted 426 | . 23 31 3 30 14 1 43 3 . . 12 1 31 2 9 . 2 11 . 24 30 5 4 11 21 17 21 18 25 12 4 18 Peak Tracking Total 20 | . 7 13 3 9 10 1 11 3 . . 3 1 8 3 5 . 4 7 . 5 4 5 1 8 12 4 20 8 14 13 2 20 Tactical Retreats 73 | . 2 5 1 4 3 . 13 1 . . . . 7 . 1 . 1 2 . 7 2 . . 1 6 2 2 4 4 1 1 3 Traps | -11 -10 -9 -9 -8 -8 -8 -6 -6 -6 -6 -6 -5 -5 -5 -5 -5 -4 -4 -4 -4 -4 -4 -4 -4 -3 -3 -2 -2 -2 -2 -1 -1 ------- Run | Yrd Mat Mat Min Mat Sto Rec Fac Low Low Zio Dee Pro Fac Upp Upp Zhi Pro Fac Was Fac Ext Cet Arc Hub Res Tes Res Qua Frg Gar Acc Com Traps Triggered 18 | . 1 1 . . . . . . . . . . 6 . . . . 1 . 3 . . . . 1 . 2 . 2 1 . . Indirectly . | . . . . . . . . . . . . . . . . . . . . . . . . . . . . . . . . . Trap Hack Attempts . | . . . . . . . . . . . . . . . . . . . . . . . . . . . . . . . . . Triggered . | . . . . . . . . . . . . . . . . . . . . . . . . . . . . . . . . . Disarmed 28 | . . . . . . . . . . . . . . . . . . . . 6 6 . . . 12 4 . . . . . . Reprogrammed 6 | . . . . . . . 6 . . . . . . . . . . . . . . . . . . . . . . . . . Reused 1 | . . . . . . . 1 . . . . . . . . . . . . . . . . . . . . . . . . . Traps Extracted . | . . . . . . . . . . . . . . . . . . . . . . . . . . . . . . . . . Installed . | . . . . . . . . . . . . . . . . . . . . . . . . . . . . . . . . . Triggered 1 | . . . . . . . 1 . . . . . . . . . . . . . . . . . . . . . . . . . Machines | -11 -10 -9 -9 -8 -8 -8 -6 -6 -6 -6 -6 -5 -5 -5 -5 -5 -4 -4 -4 -4 -4 -4 -4 -4 -3 -3 -2 -2 -2 -2 -1 -1 ---------- Run | Yrd Mat Mat Min Mat Sto Rec Fac Low Low Zio Dee Pro Fac Upp Upp Zhi Pro Fac Was Fac Ext Cet Arc Hub Res Tes Res Qua Frg Gar Acc Com Machines Disabled 50 | . . 1 . 2 2 . 1 . . 3 1 . 4 . . . . 1 . 1 3 . 2 2 2 6 . 10 2 . . 7 Max in Single Turn 4 | . . 1 . 1 1 . 1 . . 1 1 . 1 . . . . 1 . . 2 . . . 1 1 . 1 1 . . 4 Garrison Access 12 | . . . . . 1 . 1 . . . . . 3 . . . . . . 1 . . . 1 . 1 2 1 . . 1 . Phase Generator 1 | . . . . . . . . . . . . . . . . . . . . . . . . . . . . . . . . 1 Network Hub 2 | . . . . . . . . . . . . . . . . . . . . . . . . 2 . . . . . . . . Machines Repaired . | . . . . . . . . . . . . . . . . . . . . . . . . . . . . . . . . . Machines Dismantled 3 | . . . . . . . . . . 3 . . . . . . . . . . . . . . . . . . . . . . Machines Sabotaged 2 | . . . . . . . . . . . . . . . . . . . . . . . . 2 . . . . . . . . Overloaded Fab Kills . | . . . . . . . . . . . . . . . . . . . . . . . . . . . . . . . . . Hacking | -11 -10 -9 -9 -8 -8 -8 -6 -6 -6 -6 -6 -5 -5 -5 -5 -5 -4 -4 -4 -4 -4 -4 -4 -4 -3 -3 -2 -2 -2 -2 -1 -1 --------- Run | Yrd Mat Mat Min Mat Sto Rec Fac Low Low Zio Dee Pro Fac Upp Upp Zhi Pro Fac Was Fac Ext Cet Arc Hub Res Tes Res Qua Frg Gar Acc Com Machines Accessed 182 | . 7 8 . 8 13 10 14 . . . . . 16 1 . 5 1 4 . 11 13 2 . 7 6 13 10 12 8 1 6 6 Terminals 133 | . 5 7 . 5 11 6 8 . . . . . 7 . . . 1 3 . 10 13 2 . 6 6 8 7 9 7 1 5 6 Fabricators 3 | . . . . . . . . . . . . . 1 . . . . . . . . . . . . 1 1 . . . . . Repair Stations 7 | . . . . 1 . . 2 . . . . . 2 . . . . 1 . . . . . . . 1 . . . . . . Recycling Units 9 | . 2 . . 1 1 3 . . . . . . 2 . . . . . . . . . . . . . . . . . . . Scanalyzers 8 | . . 1 . . . . 2 . . . . . 1 . . . . . . . . . . . . 2 . 2 . . . . Garrison Access 15 | . . . . 1 1 . 2 . . . . . 3 . . . . . . 1 . . . 1 . 1 2 1 1 . 1 . Total Hacks 981 | . 22 31 . 35 39 34 46 . . . . . 52 1 . 18 2 46 . 63 97 8 . 28 80 110 91 59 35 1 42 41 Successful 518 | . 12 15 . 19 25 32 34 . . . . . 32 1 . 18 2 23 . 31 44 5 . 15 39 59 37 29 17 . 14 15 Failed 463 | . 10 16 . 16 14 2 12 . . . . . 20 . . . . 23 . 32 53 3 . 13 41 51 54 30 18 1 28 26 Catastrophic 84 | . 2 2 . 5 . . 2 . . . . . 6 . . . . 2 . 6 11 . . 2 5 5 14 1 5 1 9 6 Database Lockouts . | . . . . . . . . . . . . . . . . . . . . . . . . . . . . . . . . . Manual 592 | . 17 22 . 23 29 18 21 . . 1 . . 31 . . . . 31 . 51 71 1 . 25 43 60 54 30 21 1 11 31 Terminals 862 | . 20 28 . 26 37 29 34 . . . . . 36 . . . 2 44 . 61 97 8 . 25 80 90 81 48 33 1 41 41 Fabricators 11 | . . . . . . . . . . . . . 2 . . . . . . . . . . . . 3 6 . . . . . Repair Stations 27 | . . . . 5 . . 4 . . . . . 6 . . . . 2 . . . . . . . 10 . . . . . . Recycling Units 10 | . 2 . . 1 1 3 . . . . . . 3 . . . . . . . . . . . . . . . . . . . Scanalyzers 21 | . . 3 . . . . 5 . . . . . 1 . . . . . . . . . . . . 6 . 6 . . . . Garrison Access 29 | . . . . 3 1 . 3 . . . . . 4 . . . . . . 2 . . . 3 . 1 4 5 2 . 1 . Terminal Hacks 246 | . 5 4 . 5 14 18 14 . . . . . 8 1 . 18 2 12 . 13 28 5 . 3 20 24 19 12 10 . 8 3 Record 31 | . . . . . . 5 . . . . . . 1 . . 6 2 . . . . 4 . . . 2 3 2 5 . 1 . Part Schematic 12 | . . . . 1 1 3 . . . . . . 1 . . 4 . . . . 1 . . . . 1 . . . . . . Robot Schematic 1 | . . . . . . . . . . . . . . . . . . 1 . . . . . . . . . . . . . . Robot Analysis 26 | . 2 1 . . 3 3 2 . . . . . . . . 4 . 3 . 2 4 . . . . . 1 . 1 . . . Prototype ID Bank 14 | . . . . . . 1 1 . . . . . 1 . . 4 . 1 . . 1 . . . 2 1 1 1 . . . . Open Door 13 | . . . . . 3 . . . . . . . . 1 . . . . . 1 4 1 . . . . 1 1 . . 1 . Level Access Points 2 | . . . . . . . . . . . . . . . . . . . . . . . . . . 1 . . . . 1 . Branch Access Points 8 | . . . . . . 1 1 . . . . . 1 . . . . 1 . 1 . . . . . 1 1 1 . . . . Emergency Access Points 2 | . . . . . . . . . . . . . . . . . . . . . . . . . . . . . 1 . . 1 Machine Index 1 | . . . . . . . . . . . . . . . . . . . . . . . . . . . . . . . . 1 Terminal Index 15 | . 1 1 . 1 1 1 1 . . . . . 1 . . . . 1 . 1 1 . . 1 1 1 1 1 . . . . Fabricator Index 3 | . . . . . . . . . . . . . 1 . . . . 1 . . . . . . . . 1 . . . . . Repair Station Index 4 | . . . . . . . 1 . . . . . . . . . . 1 . 1 . . . . . . 1 . . . . . Garrison Index 2 | . . . . . . . . . . . . . . . . . . . . . . . . . . . 1 . . . 1 . Alert Level 11 | . . . . . 1 . 1 . . . . . . . . . . 1 . 1 2 . . . 2 1 1 1 . . . . Unreport Threat 15 | . 1 . . . 3 . 3 . . . . . . . . . . . . . 4 . . . 1 1 1 . . . 1 . Locate Traps 9 | . 1 1 . 1 . . . . . . . . . . . . . . . 1 3 . . . 2 . . . . . . . Disarm Traps 9 | . . . . . . . . . . . . . . . . . . . . 1 1 . . . 4 3 . . . . . . Reprogram Traps 1 | . . . . . . . 1 . . . . . . . . . . . . . . . . . . . . . . . . . Security Status 1 | . . . . . . . . . . . . . . . . . . . . . . . . . 1 . . . . . . . Surveillance Status 1 | . . . . . . . . . . . . . . . . . . . . . . . . . . 1 . . . . . . Transport Status 2 | . . . . . . . . . . . . . . . . . . . . . . . . . . 2 . . . . . . Extermination Status 2 | . . . . . . . . . . . . . . . . . . . . . 1 . . . 1 . . . . . . . Reinforcement Status 1 | . . . . . . . . . . . . . . . . . . . . . 1 . . . . . . . . . . . Recall Investigation 1 | . . . . . . . . . . . . . . . . . . . . . . . . . . 1 . . . . . . Recall Extermination 4 | . . . . . . . . . . . . . . . . . . . . . . . . . 1 1 1 1 . . . . Recall Reinforcements 3 | . . . . . . . . . . . . . . . . . . . . . 2 . . . . . . 1 . . . . Hauler Manifests 4 | . . . . . . 1 1 . . . . . . . . . . . . 1 . . . . 1 . . . . . . . Registered Components 6 | . . . . . . 1 . . . . . . . . . . . 1 . . . . . . . 1 1 . 1 . 1 . Registered Prototypes 2 | . . . . . . . . . . . . . . . . . . 1 . . . . . . . . 1 . . . . . Zone Layout 38 | . . 1 . 2 2 2 2 . . . . . 2 . . . . . . 3 3 . . 2 4 5 3 3 2 . 2 . Protovariant Controls 1 | . . . . . . . . . . . . . . . . . . . . . . . . . . 1 . . . . . . Disengage Seal 1 | . . . . . . . . . . . . . . . . . . . . . . . . . . . . . . . . 1 Fabricator Hacks 5 | . . . . . . . . . . . . . 2 . . . . . . . . . . . . 2 1 . . . . . Network Status 1 | . . . . . . . . . . . . . . . . . . . . . . . . . . . 1 . . . . . Load Schematic 2 | . . . . . . . . . . . . . 1 . . . . . . . . . . . . 1 . . . . . . Build 2 | . . . . . . . . . . . . . 1 . . . . . . . . . . . . 1 . . . . . . Repair Station Hacks 19 | . . . . 3 . . 4 . . . . . 4 . . . . 2 . . . . . . . 6 . . . . . . Scan Component 10 | . . . . 2 . . 2 . . . . . 2 . . . . 1 . . . . . . . 3 . . . . . . Repair 9 | . . . . 1 . . 2 . . . . . 2 . . . . 1 . . . . . . . 3 . . . . . . Recycling Unit Hacks 1 | . . . . . . . . . . . . . 1 . . . . . . . . . . . . . . . . . . . Report Inventory 1 | . . . . . . . . . . . . . 1 . . . . . . . . . . . . . . . . . . . Scanalyzer 17 | . . 2 . . . . 5 . . . . . . . . . . . . . . . . . . 6 . 4 . . . . Insert Component 12 | . . 1 . . . . 2 . . . . . . . . . . . . . . . . . . 5 . 4 . . . . Analyze 5 | . . 1 . . . . 3 . . . . . . . . . . . . . . . . . . 1 . . . . . . Garrison Access Hacks 14 | . . . . . 1 . 1 . . . . . 3 . . . . . . 1 . . . 2 . 1 2 1 1 . 1 . Unlock Access 2 | . . . . . . . . . . . . . . . . . . . . . . . . 1 . . . . 1 . . . Seal Access 12 | . . . . . 1 . 1 . . . . . 3 . . . . . . 1 . . . 1 . 1 2 1 . . 1 . Unauthorized Hacks 216 | . 7 9 . 11 10 14 10 . . . . . 14 . . . . 9 . 17 16 . . 10 19 20 15 12 6 . 5 12 Terminals 202 | . 5 9 . 10 9 11 10 . . . . . 12 . . . . 9 . 17 16 . . 10 19 19 12 11 6 . 5 12 Track 23 | . . . . . . . 1 . . . . . . . . . . 2 . 1 1 . . . 5 6 1 2 . . . 4 Assimilate 11 | . . . . . . . 1 . . . . . 1 . . . . . . 2 1 . . 1 1 1 . . 1 . 1 1 Botnet 87 | . 2 4 . 5 3 5 2 . . . . . 5 . . . . 3 . 7 8 . . 5 6 7 6 5 5 . 4 5 Operators 9 | . 1 . . . . . 1 . . . . . 1 . . . . 1 . 1 1 . . . 2 . . 1 . . . . Skim 68 | . 2 5 . 5 6 6 5 . . . . . 5 . . . . 3 . 6 5 . . . 5 5 5 3 . . . 2 Sabotage 4 | . . . . . . . . . . . . . . . . . . . . . . . . 4 . . . . . . . . Fabricators 3 | . . . . . . . . . . . . . . . . . . . . . . . . . . . 3 . . . . . Report 1 | . . . . . . . . . . . . . . . . . . . . . . . . . . . 1 . . . . . Prioritize 1 | . . . . . . . . . . . . . . . . . . . . . . . . . . . 1 . . . . . Liberate 1 | . . . . . . . . . . . . . . . . . . . . . . . . . . . 1 . . . . . Repair Stations 1 | . . . . . . . . . . . . . . . . . . . . . . . . . . 1 . . . . . . Mechanics 1 | . . . . . . . . . . . . . . . . . . . . . . . . . . 1 . . . . . . Recycling Units 9 | . 2 . . 1 1 3 . . . . . . 2 . . . . . . . . . . . . . . . . . . . Recyclers 2 | . . . . . . . . . . . . . 2 . . . . . . . . . . . . . . . . . . . Tunnel 7 | . 2 . . 1 1 3 . . . . . . . . . . . . . . . . . . . . . . . . . . Scanalyzers . | . . . . . . . . . . . . . . . . . . . . . . . . . . . . . . . . . Garrison Access 1 | . . . . . . . . . . . . . . . . . . . . . . . . . . . . 1 . . . . Watchers 1 | . . . . . . . . . . . . . . . . . . . . . . . . . . . . 1 . . . . Data Cores Recovered 3 | . . . . . . . 1 . . . . . . . . . . . . 1 . . . . . . . . 1 . . . Used . | . . . . . . . . . . . . . . . . . . . . . . . . . . . . . . . . . Hacking Detections 117 | . 4 7 . 7 10 4 11 . . . . . 9 . . . . 3 . 9 8 . . 6 4 9 5 7 5 1 4 4 Full Trace Events 9 | . 1 . . 1 1 1 . . . . . . 2 . . . . . . . . . . . . 1 . 1 1 . . . Feedback Events 1 | . . . . . . . . . . . . . . . . . . . . . . . . . . . . . 1 . . . Hackware Fried 1 | . . . . . . . . . . . . . . . . . . . . . . . . . . . . . 1 . . . Feedback Blocked . | . . . . . . . . . . . . . . . . . . . . . . . . . . . . . . . . . Robot Schematics Acquired 1 | . . . . . . . . . . . . . . . . . . 1 . . . . . . . . . . . . . . Robots Built . | . . . . . . . . . . . . . . . . . . . . . . . . . . . . . . . . . Authchips . | . . . . . . . . . . . . . . . . . . . . . . . . . . . . . . . . . Time . | . . . . . . . . . . . . . . . . . . . . . . . . . . . . . . . . . Total Robot Build Rating . | . . . . . . . . . . . . . . . . . . . . . . . . . . . . . . . . . Part Schematics Acquired 25 | . . 1 . 1 1 3 2 . . . . . 1 . . 4 . . . . 1 . . . . 2 . 9 . . . . Parts Built 2 | . . . . . . . . . . . . . 1 . . . . . . . . . . . . 1 . . . . . . Authchips 1 | . . . . . . . . . . . . . 1 . . . . . . . . . . . . . . . . . . . Time 275 | . . . . . . . . . . . . . 53 . . . . . . . . . . . . 222 . . . . . . Total Part Build Rating 15 | . . . . . . . . . . . . . 6 . . . . . . . . . . . . 9 . . . . . . Parts Repaired 9 | . . . . 1 . . 2 . . . . . 2 . . . . 1 . . . . . . . 3 . . . . . . Time 370 | . . . . 26 . . 69 . . . . . 75 . . . . 50 . . . . . . . 150 . . . . . . Parts Recycled . | . . . . . . . . . . . . . . . . . . . . . . . . . . . . . . . . . Recycled Matter . | . . . . . . . . . . . . . . . . . . . . . . . . . . . . . . . . . Retrieved Matter . | . . . . . . . . . . . . . . . . . . . . . . . . . . . . . . . . . Retrieved Components . | . . . . . . . . . . . . . . . . . . . . . . . . . . . . . . . . . Parts Scanalyzed 4 | . . 1 . . . . 2 . . . . . . . . . . . . . . . . . . 1 . . . . . . Part Schematics Acquired 4 | . . 1 . . . . 2 . . . . . . . . . . . . . . . . . . 1 . . . . . . Parts Damaged . | . . . . . . . . . . . . . . . . . . . . . . . . . . . . . . . . . Bothacking | -11 -10 -9 -9 -8 -8 -8 -6 -6 -6 -6 -6 -5 -5 -5 -5 -5 -4 -4 -4 -4 -4 -4 -4 -4 -3 -3 -2 -2 -2 -2 -1 -1 ------------ Run | Yrd Mat Mat Min Mat Sto Rec Fac Low Low Zio Dee Pro Fac Upp Upp Zhi Pro Fac Was Fac Ext Cet Arc Hub Res Tes Res Qua Frg Gar Acc Com Used RIF Installer 1 | . . . . . . . . . . . . . . . . . . . . . . . . . . . . . . 1 . . Robots Hacked . | . . . . . . . . . . . . . . . . . . . . . . . . . . . . . . . . . Non-combat . | . . . . . . . . . . . . . . . . . . . . . . . . . . . . . . . . . Combat . | . . . . . . . . . . . . . . . . . . . . . . . . . . . . . . . . . Robot Hacks Applied . | . . . . . . . . . . . . . . . . . . . . . . . . . . . . . . . . . Relay Couplers Released 1 | . . . . . . . . . . . . . 1 . . . . . . . . . . . . . . . . . . . Machine Destruction 1 | . . . . . . . . . . . . . 1 . . . . . . . . . . . . . . . . . . . Fabnet Peak Effective % . | . . . . . . . . . . . . . . . . . . . . . . . . . . . . . . . . . Robots Rewired 27 | . . . . . . . 1 . . . . . . . . . . 2 . . 24 . . . . . . . . . . . Allies Hacked . | . . . . . . . . . . . . . . . . . . . . . . . . . . . . . . . . . Hacks Repelled . | . . . . . . . . . . . . . . . . . . . . . . . . . . . . . . . . . Allies | -11 -10 -9 -9 -8 -8 -8 -6 -6 -6 -6 -6 -5 -5 -5 -5 -5 -4 -4 -4 -4 -4 -4 -4 -4 -3 -3 -2 -2 -2 -2 -1 -1 -------- Run | Yrd Mat Mat Min Mat Sto Rec Fac Low Low Zio Dee Pro Fac Upp Upp Zhi Pro Fac Was Fac Ext Cet Arc Hub Res Tes Res Qua Frg Gar Acc Com Total Allies 67 | . . . . . . . 2 . . 2 . . . . . . . 2 20 2 30 5 . 1 . 1 . . . . 1 1 Largest Group 20 | . . . . . . . 1 . . 2 2 2 2 . . . . 2 20 17 19 16 14 12 . 1 . . . . 1 2 Highest-Rated Group 979 | . . . . . . . 25 . . 192 192 192 192 . . . . 98 730 609 885 979 979 775 . 26 . . . . 45 71 Highest-Rated Ally 159 | . . . . . . . 25 . . 96 96 96 96 . . . . 49 50 50 159 159 146 96 . 26 . . . . 45 45 Total Orders 2 | . . . . . . . . . . . . . . . . . . . . . . . 2 . . . . . . . . . ROAM 1 | . . . . . . . . . . . . . . . . . . . . . . . 1 . . . . . . . . . FOLLOW 1 | . . . . . . . . . . . . . . . . . . . . . . . 1 . . . . . . . . . Ally Attacks 531 | . . . . . . . 5 . . . 31 5 26 . . . . 5 99 67 148 36 52 57 . . . . . . . . Total Damage 16908 | . . . . . . . 147 . . . 696 242 857 . . . . 248 4744 1772 4106 926 1512 1658 . . . . . . . . Kills 75 | . . . . . . . . . . . 6 2 6 . . . . 1 7 9 28 6 5 5 . . . . . . . . Allies Corrupted 3 | . . . . . . . . . . . . . . . . . . . . . . . . 3 . . . . . . . . Allies Melted 1 | . . . . . . . . . . . . . . . . . . . . 1 . . . . . . . . . . . . Intel | -11 -10 -9 -9 -8 -8 -8 -6 -6 -6 -6 -6 -5 -5 -5 -5 -5 -4 -4 -4 -4 -4 -4 -4 -4 -3 -3 -2 -2 -2 -2 -1 -1 ------- Run | Yrd Mat Mat Min Mat Sto Rec Fac Low Low Zio Dee Pro Fac Upp Upp Zhi Pro Fac Was Fac Ext Cet Arc Hub Res Tes Res Qua Frg Gar Acc Com Active Infowar (turns) 11292 | 5 500 288 25 428 232 347 910 296 112 447 613 284 949 175 115 115 280 286 216 462 1356 245 179 98 320 592 285 681 147 50 111 143 Optics 337 | . . . . 301 11 . . . . . . . 25 . . . . . . . . . . . . . . . . . . . Sensors 8220 | . . 47 25 160 . . 284 296 112 444 613 284 949 175 115 115 280 286 216 460 1356 245 179 98 39 25 285 681 147 50 111 143 IFF 500 | . . . . . . . 500 . . . . . . . . . . . . . . . . . . . . . . . . . Terrain 843 | . . . . . 148 347 348 . . . . . . . . . . . . . . . . . . . . . . . . . Structural 6497 | . . . . . . . 345 296 112 447 99 . 399 168 115 69 243 . . 349 1259 245 179 98 320 566 285 548 135 . 111 109 Traps 122 | . . . . . . . . . . . . . . . . . . . . . . . . . 122 . . . . . . . Seismic 687 | 5 500 182 . . . . . . . . . . . . . . . . . . . . . . . . . . . . . . Machine Analysis 1084 | . 259 288 25 428 84 . . . . . . . . . . . . . . . . . . . . . . . . . . . Jamming 304 | . . . . . . . . . . . . . . . . . . . . . . . . . . . 221 83 . . . . ECM 853 | . . . . 91 . . . . . . . . . . . . . . . . . . . . 63 540 53 106 . . . . Robot Analysis Total 25 | . 2 1 . . 3 3 1 . . . . . . . . 4 . 3 . 2 4 . . . . . 1 . 1 . . . Derelict Logs Recovered 8 | . . . 1 . . . . . . 3 . 1 . 1 2 . . . . . . . . . . . . . . . . . Drone Launches . | . . . . . . . . . . . . . . . . . . . . . . . . . . . . . . . . . Drone Recoveries . | . . . . . . . . . . . . . . . . . . . . . . . . . . . . . . . . . Exploration | -11 -10 -9 -9 -8 -8 -8 -6 -6 -6 -6 -6 -5 -5 -5 -5 -5 -4 -4 -4 -4 -4 -4 -4 -4 -3 -3 -2 -2 -2 -2 -1 -1 ------------- Run | Yrd Mat Mat Min Mat Sto Rec Fac Low Low Zio Dee Pro Fac Upp Upp Zhi Pro Fac Was Fac Ext Cet Arc Hub Res Tes Res Qua Frg Gar Acc Com Turns Passed 11542 | 67 500 288 25 428 233 347 1004 296 112 447 613 284 953 175 115 115 280 286 216 466 1356 245 179 98 320 592 285 689 168 50 111 199 Spaces Moved 19026 | 60 597 440 47 658 407 403 1335 317 206 729 963 339 1429 419 271 188 398 411 296 1153 1223 155 138 245 680 1058 983 1537 500 234 422 785 Core 489 | 60 154 134 47 53 . . 17 . . . . . . . . . . . . . . . . . . . . . . . . 24 Treads . | . . . . . . . . . . . . . . . . . . . . . . . . . . . . . . . . . Legs . | . . . . . . . . . . . . . . . . . . . . . . . . . . . . . . . . . Wheels . | . . . . . . . . . . . . . . . . . . . . . . . . . . . . . . . . . Hover 6274 | . . . . . . . 452 317 206 729 963 339 1429 419 271 176 398 411 164 . . . . . . . . . . . . . Flight 12263 | . 443 306 . 605 407 403 866 . . . . . . . . 12 . . 132 1153 1223 155 138 245 680 1058 983 1537 500 234 422 761 Fastest Speed 7 | 50 37 40 50 30 30 32 27 48 48 48 22 48 34 34 34 34 21 40 28 26 26 31 31 31 28 15 8 8 7 7 10 10 Average Speed 31 | 50 42 43 50 35 32 32 39 48 48 48 40 48 39 34 34 42 35 41 37 28 26 31 31 31 31 28 14 16 17 10 10 15 Slowest Speed 315 | 50 100 50 50 50 35 32 200 48 48 48 101 48 51 34 34 315 43 43 100 105 103 31 31 31 34 107 19 76 79 12 67 100 Overloaded Moves 213 | . . . . . . . . . . . . . . . . . . . . . . . . . . . 5 43 116 49 . . Propulsion Burnouts . | . . . . . . . . . . . . . . . . . . . . . . . . . . . . . . . . . Robots Hopped 72 | . 5 . . 13 3 3 4 . . . . . . . . . . . . 4 10 . 3 1 8 8 2 4 2 . . 2 Potential Cave-ins 105 | . . . . . . . . . . . . . . . . . 2 . . . . . . . . . . 4 . 1 4 94 Cave-ins Triggered 7 | . . . . . . . . . . . . . . . . . 1 . . . . . . . . . . 3 . . . 3 Exploration Rate (%) 54 | 3 89 53 27 78 89 98 44 49 33 80 76 48 34 72 49 61 72 12 90 32 89 73 72 37 22 77 35 98 25 36 15 28 Regions Visited 32 Branch Regions 20 Pre-discovered Areas 26 | . 2 . . 2 2 5 5 . . 4 . . . . 1 3 . . . . 1 . . . . . 1 . . . . . Known Exits Taken 27 | . . 1 1 1 1 1 1 1 1 1 1 1 1 1 1 1 1 . . 1 1 1 1 1 1 1 1 1 1 . 1 . Unknown Exits Taken 2 | 1 1 . . . . . . . . . . . . . . . . . . . . . . . . . . . . . . . Scrap Searched 14 | . . . 1 . . . . 2 3 2 . 2 . 2 2 . . . . . . . . . . . . . . . . . Spaces Dug 280 | . . 12 . 16 10 3 37 4 3 . 32 . 20 7 3 . 10 2 . 25 6 . . 7 21 17 20 25 . . . . Terrain Destroyed 3881 | . . 12 . 16 10 3 37 4 3 . 91 . 20 7 36 . 10 2 . 25 113 . . 7 21 18 20 25 . . . 3401 Melee 249 | . . 12 . 16 10 3 37 4 3 . 4 . 20 7 3 . 10 2 . 25 6 . . 7 21 14 20 25 . . . . Projectile 5 | . . . . . . . . . . . . . . . . . . . . . . . . . . 4 . . . . . 1 AOE 3626 | . . . . . . . . . . . 87 . . . 33 . . . . . 107 . . . . . . . . . . 3399 Terrain Rammed 1 | . . . . . . . . . . . . . . . . . . . . . . . . . . . . . . . . 1 Walls Destroyed 1 | . . . . . . . . . . . . . . . . . . . . . . . . . . . . . . . . 1 Machines Disabled . | . . . . . . . . . . . . . . . . . . . . . . . . . . . . . . . . . Actions | -11 -10 -9 -9 -8 -8 -8 -6 -6 -6 -6 -6 -5 -5 -5 -5 -5 -4 -4 -4 -4 -4 -4 -4 -4 -3 -3 -2 -2 -2 -2 -1 -1 --------- Run | Yrd Mat Mat Min Mat Sto Rec Fac Low Low Zio Dee Pro Fac Upp Upp Zhi Pro Fac Was Fac Ext Cet Arc Hub Res Tes Res Qua Frg Gar Acc Com Total 23433 | 76 734 487 47 750 473 601 1663 454 214 798 1148 459 1730 440 286 217 519 495 403 1234 2188 349 258 254 738 1292 1080 1895 562 255 482 852 Wait 3051 | . 44 4 1 31 32 190 193 134 3 27 126 121 206 7 11 . 110 53 93 30 724 193 113 1 32 147 49 269 15 18 41 33 Move 18853 | 59 586 439 46 632 400 396 1326 316 205 728 962 338 1428 418 270 187 397 411 295 1144 1203 154 133 242 663 1043 978 1527 495 233 421 778 Hop 66 | . 5 . . 12 3 3 4 . . . . . . . . . . . . 4 9 . 1 1 8 6 2 4 2 . . 2 Pick Up 69 | 1 6 2 . 2 2 . 5 . 1 1 . . 7 2 . 2 . . 1 3 3 . . 1 2 9 3 11 2 . 1 2 Fast Attach 195 | 5 3 8 . 12 7 . 23 . . 5 15 . 22 1 . 10 . 4 3 9 6 . 2 . 4 15 10 9 12 . 4 6 Attach 59 | . 4 1 . 3 2 1 3 . 1 . . . 3 1 . . 1 2 3 2 1 1 1 . 3 10 1 6 1 . 4 4 Detach 25 | 1 2 . . 1 1 . 1 . . . 1 . . 1 . 1 1 . 1 . . . 1 . . 8 . 2 1 . 1 1 Swap 40 | . . . . . 1 1 1 . . 2 4 . 1 1 . 3 . 2 . 3 6 . . 1 3 2 3 2 2 . . 2 Drop 159 | . 3 4 . 3 5 . 10 . 1 7 12 . 10 2 . 11 . . 7 6 5 . 1 1 . 18 9 16 12 . 6 10 Fire 132 | 10 81 1 . . . . 3 . . . 15 . . . 2 . . . . . 4 . . . . 8 . . . . . 8 Melee 515 | . . 27 . 54 20 10 85 4 3 . 13 . 53 7 3 3 10 18 . 33 21 1 6 7 23 26 25 48 8 1 4 2 Ram 2 | . . 1 . . . . . . . . . . . . . . . . . . . . . . . . . . . . . 1 Kick . | . . . . . . . . . . . . . . . . . . . . . . . . . . . . . . . . . Crush . | . . . . . . . . . . . . . . . . . . . . . . . . . . . . . . . . . Escape Stasis 31 | . . . . . . . . . . . . . . . . . . . . . 12 . . . . . . 1 12 3 . 3 Rewire 208 | . . . . . . . 9 . . . . . . . . . . 5 . . 194 . . . . . . . . . . . Trap . | . . . . . . . . . . . . . . . . . . . . . . . . . . . . . . . . . Miscellaneous 28 | . . . . . . . . . . 28 . . . . . . . . . . . . . . . . . . . . . . Route ------- -11/Scrapyard -10/Materials (discovered 3 exits: *Mat x2 / [*Min]) -9/Materials (discovered 2 exits: *Mat / *Min) -9/Mines -8/Materials (discovered 4 exits: *Fac x3 / *Sto) -8/Storage -8/Recycling -6/Factory (discovered 4 exits: *Fac x2 / *Low x2) -6/Lower Caves -6/Lower Caves -6/Zion (discovered 2 exits: *Dee / *Pro) -6/Deep Caves -5/Proximity Caves -5/Factory (discovered 2 exits: *Upp x2) -5/Upper Caves -5/Upper Caves -5/Zhirov -4/Proximity Caves -4/Factory (discovered 4 exits: Upp x2 / Ext x2) -4/Waste -4/Factory (discovered 6 exits: *Res x2 / Upp x2 / *Ext x2) -4/Extension (discovered 3 exits: *Res x2 / *Cet) -4/Cetus -4/Archives (discovered 2 exits: Res / *Hub) -4/Hub_04(d) -3/Research (discovered 4 exits: Res / Arm / *Tes x2) -3/Testing -2/Research (discovered 2 exits: *Qua x2) -2/Quarantine (discovered 3 exits: *Acc / [*Sec] / *Frg) -2/Protoforge (discovered 2 exits: *Acc / Gar) -2/Garrison -1/Access (discovered 2 exits: Sur / *Com) -1/Command History --------- Turn | Location | Event 7 | -11/Scrapyard | Discovered new exit (range 13) 68 | -11/Scrapyard | Entered Materials 120 | -10/Materials | Discovered new exit (range 10) 232 | -10/Materials | Core integrity fell below 50% 321 | -10/Materials | Discovered new exit (range 13) 528 | -10/Materials | Discovered new exit (range 10) 568 | -10/Materials | Entered another Materials area 568 | -9/Materials | Evolved 2 slots: Propulsion x1, Utility x1 647 | -9/Materials | Discovered new exit (range 14) 710 | -9/Materials | Build established: Scavenger-Mutant 793 | -9/Materials | Core integrity fell below 50% 833 | -9/Materials | Discovered new exit (range 6) 856 | -9/Materials | Identified exit to Mines 856 | -9/Materials | Entered Mines 873 | -9/Mines | Learned 4 Materials zone layouts 876 | -9/Mines | Discovered new exit (range 9) 880 | -9/Mines | Identified exit to Materials 881 | -9/Mines | Entered Materials 881 | -8/Materials | Evolved 2 slots: Utility x2 1040 | -8/Materials | Discovered new exit (range 16) 1047 | -8/Materials | Identified exit to Storage 1062 | -8/Materials | Discovered new exit (range 13) 1145 | -8/Materials | Learned location of Zion (-6) 1192 | -8/Materials | Learned location of 1 exit from Extension 1224 | -8/Materials | Repaired Broken Cesium-ion Thruster 1231 | -8/Materials | Learned location of 1 exit from Recycling 1260 | -8/Materials | Learned 4 Recycling zone layouts 1260 | -8/Materials | Discovered new exit (range 11) 1261 | -8/Materials | Core integrity fell below 50% 1277 | -8/Materials | Learned location of 1 exit from Lower Caves 1283 | -8/Materials | Lost 3 parts (1p2n) 1305 | -8/Materials | Identified exit to Factory 1309 | -8/Materials | Entered Storage 1409 | -8/Storage | Learned location of Armory (-3) 1519 | -8/Storage | Used back door to open Recycling access 1519 | -8/Storage | Discovered new exit (range 5) 1522 | -8/Storage | Identified exit to Recycling 1542 | -8/Storage | Entered Recycling 1543 | -8/Recycling | Identified exit to Factory 1616 | -8/Recycling | Build established: Hacker-Sprinter 1669 | -8/Recycling | Scanned before Scraplab entrance 1677 | -8/Recycling | Entered Scraplab 1707 | -8/Recycling | Learned 2 Lower Caves zone layouts 1784 | -8/Recycling | Learned 4 Recycling zone layouts 1820 | -8/Recycling | Learned Storage security intel 1851 | -8/Recycling | Learned Factory stockpile data 1889 | -8/Recycling | Entered Factory 1889 | -6/Factory | Evolved 4 slots: Propulsion x1, Utility x3 2019 | -6/Factory | Discovered new exit (range 15) 2025 | -6/Factory | Identified exit to Factory 2082 | -6/Factory | Garrison activated, responded to threat 2265 | -6/Factory | Spotted B-75 Beast 2315 | -6/Factory | Lost 6 parts (1p3n1u1w) 2384 | -6/Factory | Learned location of Proximity Caves (-5) 2528 | -6/Factory | Learned location of 2 exits from Archives 2559 | -6/Factory | Learned location of 1 exit from Extension 2581 | -6/Factory | Learned Extension emergency access door positions 2591 | -6/Factory | Learned location of Upper Caves (-5) 2611 | -6/Factory | Learned Extension stockpile data 2618 | -6/Factory | Repaired Power Sword? 2642 | -6/Factory | Learned location of Proximity Caves (-3) 2681 | -6/Factory | Learned 2 Proximity Caves zone layouts 2736 | -6/Factory | Identified exit to Lower Caves 2857 | -6/Factory | Repaired Gravmag System 2893 | -6/Factory | Entered Lower Caves 2894 | -6/Lower Caves | Identified exit to Lower Caves 3006 | -6/Lower Caves | Spotted B-75 Beast 3148 | -6/Lower Caves | Encountered a Warlord checkpoint 3164 | -6/Lower Caves | Build established: Hacker-Scout 3189 | -6/Lower Caves | Entered another Lower Caves area 3290 | -6/Lower Caves | Discovered new exit (range 8) 3295 | -6/Lower Caves | Identified exit to Zion 3301 | -6/Lower Caves | Entered Zion 3342 | -6/Zion | Discovered new exit (range 13) 3348 | -6/Zion | Identified exit to Proximity Caves 3371 | -6/Zion | System corruption cleaned by Quarantine Array 3384 | -6/Zion | Learned Factory emergency access door positions 3403 | -6/Zion | Found Prototype Device 3403 | -6/Zion | Identified Phasing AFG 3431 | -6/Zion | Learned location of Warlord (-4) 3466 | -6/Zion | Identified exit to Deep Caves 3553 | -6/Zion | Learned location of Quarantine (-2) 3592 | -6/Zion | Given A8's code to call for help 3626 | -6/Zion | Build established: Scout 3653 | -6/Zion | Found Prototype Special Weapon 3653 | -6/Zion | Identified RU-N14's Throwing Claymores 3732 | -6/Zion | Enhanced Grunt warped into view, answering call for help 3735 | -6/Zion | Enhanced Grunt warped into view, answering call for help 3741 | -6/Zion | Saw the warning signs outside the Deep Caves entrance 3748 | -6/Zion | Entered Deep Caves 3748 | -6/Deep Caves | Accompanied by 2 allies 3825 | -6/Deep Caves | Attacked by Z-Imprinter 3837 | -6/Deep Caves | Destroyed Z-Imprinter 3855 | -6/Deep Caves | Found Prototype Protection 3855 | -6/Deep Caves | Identified Zio. Weapon Casing 3863 | -6/Deep Caves | Found Prototype Device 3863 | -6/Deep Caves | Identified Zio. Metafield Generator 4098 | -6/Deep Caves | Core integrity fell below 50% 4246 | -6/Deep Caves | Discovered new exit (range 7) 4248 | -6/Deep Caves | Identified exit to Proximity Caves 4361 | -6/Deep Caves | Entered Proximity Caves 4361 | -5/Proximity Caves | Accompanied by 2 allies 4443 | -5/Proximity Caves | Build established: Mutant 4462 | -5/Proximity Caves | Learned Factory emergency access door positions 4631 | -5/Proximity Caves | Discovered exit to Factory (range 6) 4645 | -5/Proximity Caves | Entered Factory 4645 | -5/Factory | Accompanied by 2 allies 4645 | -5/Factory | Evolved 2 slots: Propulsion x1, Utility x1 4646 | -5/Factory | Identified exit to Upper Caves 4835 | -5/Factory | Repaired Imp. Gravmag System 5001 | -5/Factory | Repaired Power Sword 5379 | -5/Factory | Build established: Hacker-Mutant 5537 | -5/Factory | Fabricated Adv. Hacking Suite? 5545 | -5/Factory | Search patrols dispatched 5598 | -5/Factory | Entered Upper Caves 5717 | -5/Upper Caves | Identified exit to Upper Caves 5773 | -5/Upper Caves | Entered another Upper Caves area 5780 | -5/Upper Caves | Build established: Hacker-Scout 5879 | -5/Upper Caves | Discovered new exit (range 14) 5882 | -5/Upper Caves | Learned Factory terminal intel 5887 | -5/Upper Caves | Identified exit to Zhirov 5888 | -5/Upper Caves | Entered Zhirov 5888 | -5/Zhirov | Discovered new exit (range 3) 5895 | -5/Zhirov | Met Zhirov 5904 | -5/Zhirov | Found Alien Artifact 5904 | -5/Zhirov | Identified Integrated Dissipator 5904 | -5/Zhirov | Installed Integrated Dissipator, increased core heat dissipation (+20) 5971 | -5/Zhirov | Found Alien Artifact 5988 | -5/Zhirov | Learned location of Testing (-3) 5988 | -5/Zhirov | Learned location of Command (-1) 5993 | -5/Zhirov | Zhirov requested help retrieving the SGEMP Prototype 6003 | -5/Zhirov | Identified exit to Proximity Caves 6003 | -5/Zhirov | Entered Proximity Caves 6246 | -4/Proximity Caves | Crushed by falling debris 6246 | -4/Proximity Caves | System corruption reached 10% 6277 | -4/Proximity Caves | Lost 4 parts (1n3u) 6280 | -4/Proximity Caves | Discovered new exit (range 4) 6282 | -4/Proximity Caves | Identified exit to Factory 6283 | -4/Proximity Caves | Entered Factory 6283 | -4/Factory | Evolved 2 slots: Propulsion x1, Utility x1 6284 | -4/Factory | Identified exit to Extension 6286 | -4/Factory | Loaded intel: 26 terminal locations 6364 | -4/Factory | Repaired Lgt. Fission Core 6381 | -4/Factory | Identified exit to Upper Caves 6539 | -4/Factory | Garrison activated, responded to threat 6556 | -4/Factory | Build established: Hacker-Mutant 6569 | -4/Factory | Sucked down chute 6569 | -4/Factory | Entered Waste 6570 | -4/Waste | Met a frightened Derelict 6590 | -4/Waste | Warlord forces began an assault 6629 | -4/Waste | Spotted C-40 Crusher 6638 | -4/Waste | Spotted C-40 Crusher 6639 | -4/Waste | Allies destroyed C-40 Crusher 6665 | -4/Waste | Found Prototype Launcher 6665 | -4/Waste | Identified Tactical Quantum Warhead 6694 | -4/Waste | Discovered new exit (range 15) 6709 | -4/Waste | Identified exit to Factory 6785 | -4/Waste | Entered Factory 6785 | -4/Factory | Accompanied by 17 allies 6907 | -4/Factory | Lost 8 allies 7063 | -4/Factory | Learned Quarantine trap positions 7091 | -4/Factory | Identified exit to Research 7108 | -4/Factory | Learned Research terminal intel 7116 | -4/Factory | Loaded intel: 4 scanalyzer locations 7117 | -4/Factory | Learned location of 1 exit from Proximity Caves 7123 | -4/Factory | Learned location of 3 exits from Research 7141 | -4/Factory | Loaded intel: 55 interactive machine locations 7149 | -4/Factory | Build established: Hacker-Scout 7220 | -4/Factory | Found Prototype Device 7220 | -4/Factory | Identified Adv. EM Shield 7227 | -4/Factory | Discovered exit to Research (range 13) 7251 | -4/Factory | Entered Extension 7252 | -4/Extension | Identified exit to Cetus 7486 | -4/Extension | Rescued A7 7493 | -4/Extension | Rescued a captive Derelict 7499 | -4/Extension | Rescued a captive Derelict 7926 | -4/Extension | Spotted B-86 Titan 7933 | -4/Extension | Allies destroyed B-86 Titan 7940 | -4/Extension | Spotted B-86 Titan 7944 | -4/Extension | Destroyed B-86 Titan 8133 | -4/Extension | Learned 4 Proximity Caves zone layouts 8181 | -4/Extension | Learned Quarantine garrison access intel 8217 | -4/Extension | Learned 4 Proximity Caves zone layouts 8241 | -4/Extension | Learned Research security intel 8255 | -4/Extension | Learned location of 1 exit from Research 8269 | -4/Extension | Learned 4 Quarantine zone layouts 8290 | -4/Extension | Learned location of 2 exits from Factory 8365 | -4/Extension | Learned Testing trap positions 8455 | -4/Extension | Lost 3 allies 8470 | -4/Extension | Rescued a captive Derelict 8472 | -4/Extension | Rescued a captive Derelict 8607 | -4/Extension | Entered Cetus 8607 | -4/Cetus | Accompanied by 16 allies (A7) 8612 | -4/Cetus | Acquired a Cetus Manufacturing Module code from A7 8624 | -4/Cetus | Spotted Cetus Guard 8626 | -4/Cetus | Spotted Cetus Guard 8626 | -4/Cetus | Spotted Cetus Guard 8627 | -4/Cetus | Spotted Cetus Guard 8635 | -4/Cetus | Allies destroyed Cetus Guard 8638 | -4/Cetus | Allies destroyed Cetus Guard 8641 | -4/Cetus | Allies destroyed Cetus Guard 8650 | -4/Cetus | Allies destroyed Cetus Guard 8670 | -4/Cetus | Started Cetus Manufacturing Module 8683 | -4/Cetus | Lost 7 allies 8695 | -4/Cetus | Manufactured an Enhanced Grunt 8700 | -4/Cetus | Escorted A7 to Cetus Mainframe 8720 | -4/Cetus | Manufactured an Enhanced Grunt 8745 | -4/Cetus | Manufactured an Enhanced Grunt 8770 | -4/Cetus | Manufactured an Enhanced Grunt 8795 | -4/Cetus | Manufactured an Enhanced Grunt 8809 | -4/Cetus | Discovered new exit (range 15) 8814 | -4/Cetus | Identified exit to Archives 8852 | -4/Cetus | Entered Archives 8852 | -4/Archives | Accompanied by 14 allies (A7) 8853 | -4/Archives | Identified exit to Hub_04(d) 8862 | -4/Archives | Received a hacking code to weaken MAIN.C 9031 | -4/Archives | Entered Hub_04(d) 9031 | -4/Hub_04(d) | Accompanied by 11 allies 9052 | -4/Hub_04(d) | Network Hub disabled 9055 | -4/Hub_04(d) | Network Hub disabled 9065 | -4/Hub_04(d) | Spotted Lightning 9065 | -4/Hub_04(d) | Spotted Lightning 9065 | -4/Hub_04(d) | Spotted Lightning 9078 | -4/Hub_04(d) | Build established: Commander-Scout 9080 | -4/Hub_04(d) | Identified exit to Garrison 9105 | -4/Hub_04(d) | Spotted Lightning 9121 | -4/Hub_04(d) | Discovered exit to Research (range 9) 9129 | -4/Hub_04(d) | Entered Research 9129 | -3/Research | Evolved 2 slots: Power x1, Propulsion x1 9130 | -3/Research | Identified exit to Testing 9130 | -3/Research | Identified exit to Armory 9130 | -3/Research | Identified exit to Research 9132 | -3/Research | Loaded intel: 23 terminal locations 9253 | -3/Research | Lost 6 parts (1p2n3u) 9449 | -3/Research | Entered Testing 9450 | -3/Testing | Loaded intel: 12 trap records 9554 | -3/Testing | Repaired Field Propulsion Array 9581 | -3/Testing | Repaired Structural Scanner 9595 | -3/Testing | Spotted Striker 9595 | -3/Testing | Spotted Striker 9645 | -3/Testing | Repaired Impulse Thruster 9816 | -3/Testing | Found Prototype Energy Gun 9816 | -3/Testing | Identified Warp Gun 9847 | -3/Testing | Fabricated Cld. Q-thruster (x1) 9873 | -3/Testing | Identified Transdimensional Reconstructor 9895 | -3/Testing | Found Prototype Hackware 9895 | -3/Testing | Identified Ghost Barrier 9915 | -3/Testing | Protovariant out of control (PL-7C5356RCBC) 9915 | -3/Testing | Unleashed a protovariant (PL-7C5356RCBC) 10003 | -3/Testing | Spotted Alpha 7 10027 | -3/Testing | Learned Access scanalyzer intel 10041 | -3/Testing | Entered Research 10041 | -2/Research | Evolved 2 slots: Utility x2 10073 | -2/Research | Spotted B-90 Cyclops 10091 | -2/Research | Found Prototype Device 10091 | -2/Research | Identified Exp. Thermal Shield 10206 | -2/Research | Identified exit to Quarantine 10324 | -2/Research | Build established: Wizard-Ninja 10326 | -2/Research | Entered Quarantine 10328 | -2/Quarantine | Loaded intel: 21 trap records 10329 | -2/Quarantine | Loaded intel: 1 garrison access location 10343 | -2/Quarantine | Found Alien Reactor 10409 | -2/Quarantine | Crushed by falling debris 10409 | -2/Quarantine | Discovered new exit (range 3) 10413 | -2/Quarantine | Identified Matter Drive 10418 | -2/Quarantine | Found Alien Artifact 10420 | -2/Quarantine | Identified Phase Redirector 10515 | -2/Quarantine | Found Alien Slashing Weapon 10515 | -2/Quarantine | Identified Sigix Broadsword 10521 | -2/Quarantine | Spotted Alpha 7 10524 | -2/Quarantine | Cryocooling Duct disabled 10534 | -2/Quarantine | Cryocooling Duct disabled 10539 | -2/Quarantine | Ambient heat levels rising (+20) 10539 | -2/Quarantine | Non-combat units ordered to evacuate 10539 | -2/Quarantine | Cryocooling Duct disabled 10549 | -2/Quarantine | Ambient heat levels rising (+20) 10549 | -2/Quarantine | Combat units ordered to evacuate 10554 | -2/Quarantine | Ambient heat levels rising (+20) 10583 | -2/Quarantine | Crushed by falling debris 10583 | -2/Quarantine | System corruption reached 10% 10649 | -2/Quarantine | Quarantine Guard activated 10677 | -2/Quarantine | Found Alien Artifact 10683 | -2/Quarantine | Identified Dimensional Node Initializer 10690 | -2/Quarantine | Found Transdimensional Reconstructor 10699 | -2/Quarantine | Found Alien Artifact 10720 | -2/Quarantine | Identified Hpw. Transdimensional Reconstructor 10742 | -2/Quarantine | Found Alien Impact Weapon 10742 | -2/Quarantine | Identified Core Stripper 10752 | -2/Quarantine | Found Alien Artifact 10752 | -2/Quarantine | Identified Subatomic Replicator 10768 | -2/Quarantine | Met incapacitated Sigix Warrior 10768 | -2/Quarantine | Lockdown squad dispatched 10769 | -2/Quarantine | Acquired the access code to the Sigix quarantine chamber 10816 | -2/Quarantine | Spotted Quarantine Guard 10841 | -2/Quarantine | Spotted Lightning 10861 | -2/Quarantine | Spotted Quarantine Guard 10866 | -2/Quarantine | Spotted Quarantine Guard 10869 | -2/Quarantine | Spotted Quarantine Guard 10879 | -2/Quarantine | Found Alien Launcher 10894 | -2/Quarantine | Crushed by falling debris 10896 | -2/Quarantine | Core integrity fell below 50% 10928 | -2/Quarantine | Spotted Quarantine Guard 10991 | -2/Quarantine | Spotted Fortress 10992 | -2/Quarantine | Spotted Quarantine Guard 11011 | -2/Quarantine | Discovered new exit (range 6) 11011 | -2/Quarantine | Discovered new exit (range 6) 11011 | -2/Quarantine | Spotted Quarantine Guard 11011 | -2/Quarantine | Spotted Quarantine Guard 11014 | -2/Quarantine | Build established: Hacker-Scout 11015 | -2/Quarantine | Identified exit to Protoforge 11015 | -2/Quarantine | Entered Protoforge 11016 | -2/Protoforge | Superfortress began startup sequence 11041 | -2/Protoforge | Spotted Hotshot 11041 | -2/Protoforge | Spotted Hotshot 11041 | -2/Protoforge | Spotted Hotshot 11041 | -2/Protoforge | Spotted Hotshot 11042 | -2/Protoforge | Spotted Hotshot 11048 | -2/Protoforge | Spotted B-90 Cyclops 11058 | -2/Protoforge | Discovered new exit (range 3) 11058 | -2/Protoforge | Identified exit to Access 11079 | -2/Protoforge | Imp. Hacking Suite fried by hacking feedback 11104 | -2/Protoforge | Found Prototype Device 11104 | -2/Protoforge | Identified Exp. Trap Extractor 11107 | -2/Protoforge | Found Prototype Storage 11107 | -2/Protoforge | Identified Cep. NT7 Matterbank 11127 | -2/Protoforge | Found Prototype Protection 11127 | -2/Protoforge | Identified Cep. Core Shell 11129 | -2/Protoforge | Found Cep. Core Shell 11140 | -2/Protoforge | Spotted Decapitator 11140 | -2/Protoforge | Spotted Decapitator 11140 | -2/Protoforge | Spotted Decapitator 11140 | -2/Protoforge | Spotted V780-i 11140 | -2/Protoforge | Spotted V530-j 11148 | -2/Protoforge | Found Prototype Flight Unit 11148 | -2/Protoforge | Identified Cep. Fieldthrust Drive 11155 | -2/Protoforge | Found Cep. Fieldthrust Drive 11165 | -2/Protoforge | Found Cep. Fieldthrust Drive 11183 | -2/Protoforge | Identified exit to Garrison 11183 | -2/Protoforge | Entered Garrison 11205 | -2/Garrison | Spotted B-90 Cyclops 11216 | -2/Garrison | Spotted B-90 Cyclops 11222 | -2/Garrison | Discovered exit to Access (range 13) 11231 | -2/Garrison | Installed Relay Interface Framework 11233 | -2/Garrison | Entered Access 11233 | -1/Access | Evolved 2 slots: Power x1, Propulsion x1 11234 | -1/Access | Loaded intel: 4 scanalyzer locations 11317 | -1/Access | Used Subatomic Replicator to create Alien Launcher 11325 | -1/Access | Identified exit to Surface 11337 | -1/Access | Discovered new exit (range 7) 11337 | -1/Access | Identified exit to Command 11344 | -1/Access | Entered Command 11344 | -1/Command | Accompanied by 1 ally 11353 | -1/Command | Spotted B-99 Colossus 11358 | -1/Command | Disengaged cave seal 11391 | -1/Command | Phase Generator disabled 11454 | -1/Command | Spotted Combat Programmer 11464 | -1/Command | Identified Supercharged Sigix Terminator 11486 | -1/Command | Fired Supercharged Sigix Terminator 11486 | -1/Command | MAIN.C activated Command garrisons 11486 | -1/Command | 0b10 Conduit disabled 11486 | -1/Command | Spotted M Guard 11486 | -1/Command | Spotted M Guard 11486 | -1/Command | Spotted Combat Programmer 11492 | -1/Command | Met MAIN.C 11502 | -1/Command | Core integrity fell below 50% 11507 | -1/Command | Destroyed 177 combat bots 11520 | -1/Command | Crushed by falling debris 11525 | -1/Command | Crushed by falling debris 11532 | -1/Command | Core integrity fell below 20% 11535 | -1/Command | Crushed by falling debris 11543 | -1/Command | Destroyed by D-83 Annihilator with Micro-nuke Launcher Last Messages --------------- 11525_ Ghost Barrier destroyed. 11525_ The unstable cave ceiling collapses. 11525_ Crushed by falling debris. 11525_ Adv. Signal Interpreter destroyed. 11525_ System corrupted by crushing effect (+1). 11526_ Penetrated by EMDS Slug. 11527_ The unstable cave ceiling collapses. 11527_ P-80 Master crushed by falling debris. 11528_ P-80 Master resets P-80 Master, system corruption cleaned. 11529_ FUY27O%ONEOM%TZKVSMZ664VO NEL 7| 11530_ Exp. Coolant Injector destroyed. 11531_ Penetrated by Slug. 11531_ Exp. Biomechanical Wings destroyed. 11534_ Penetrated by Slug. 11535_ The unstable cave ceiling collapses. 11535_ Crushed by falling debris. 11539_ Acquired 79 matter. 11540_ Penetrated by Slug. [Achievement: Rambo] Map ----- +----------------------------------------------------+ | | | | | | | | | | | | | | | | | | | | | ?????????????????????????????????????????????????? | | ?????????????????????????????????????????????????? | | ?????????????????????????????????????????????????? | | ?????????????????????????????????????????????????? | | ?????????????????????????####????????????????????? | | ?????????????????????#### ####?????????????????? | | ???????????????????### ###???????????????? | | ????????????????#### ####????????????? | | ??????????????### ###??????????? | | ???????????#### #??????????? | | ?????????### ??????????? | | ??????#### ?????????? | | ????###" " ?????????? | | ??###" " " ;;;;;;;;;;;;;;;;;;;;; ????????? | | ### " " " ; [ ; ; ; ; ????????? | | " " " # ; ! =; ;@ ; ; ????????? | | " " " ; [ ; ; ; ; ????????? | | " " " %=[%!; ; ; ; ????????? | | " " " !![[ ; ; ; ; ?????????? | | " " " ;* !%; ; ; ; ?????????? | | " " " ;;=%!;; ;;; ;;; ;; ??????????? | | " " " ;[!; ; ; ; ; ; ; ??????????? | | " " " ; ; ; ; ; ; ; ; ??????????? | | " " " ; ; ; ; ; ; ; ; ???????????? | | " " " ; ; ; ; ; ; ; ; ???????????? | | " " " ;gh; ; ; ; ; ; ; ????????????? | | " " " ; ; ; ; ; ; ; ; ????????????? | | " " " "" ;;; ;;; ;;; ;;??????????????? | | " " " " g d ????????????????? | | " " " " ???????????????????? | | " " " " ?????????????????????? | | " " " "??????????????????????????????????? | | " " " ???????????????????????????????????? | | " " " ????????????????????????????????????? | | " " " ?????????????????????????????????????? | | " " " ??????????????????????????????????????? | | " " " ??????????????????????????????????????? | | " " " ??????????????????????????????????????? | | " " "???????????????????????????????????????? | | " " "???????????????????????????????????????? | +----------------------------------------------------+ Best States ------------- Heat Dissipation 91 Coolant Potential 120 Energy Generation 41 Energy Capacity 315 Matter Stores 300 Matter Capacity 300 Sight Range 22 Robot Scan Range 18 Terrain Scan Range 16 Terrain Scan Density 210 ECM Strength 2 Jamming Range 12 Corruption Block 15 Armor Coverage 400 Core Shielding 90 Utility Shielding 66 Evasion (%) 80 Targeting Accuracy 5 Melee Accuracy 8 Offensive Hacking 30 Defensive Hacking 48 Authchip Count 3 Item Schematics ----------------- ECM Suite | -9/Materials | Scanalyzed Med. Storage Unit | -8/Materials | Hacked Mic. Nuclear Core | -8/Storage | Hacked Minigun | -8/Recycling | Hacked Actuator Array | -8/Recycling | Hacked Adv. Terrain Scan Processor | -8/Recycling | Hacked Imp. Cesium-ion Thruster | -6/Factory | Scanalyzed Imp. Hacking Suite | -6/Factory | Scanalyzed Adv. Hacking Suite | -5/Factory | Hacked Assault Drone Bay | -5/Zhirov | Free Exp. Heat Sink | -5/Zhirov | Free Exp. Optical Array | -5/Zhirov | Free Imp. Arc Thrower | -5/Zhirov | Free Micro-nuke Launcher | -4/Extension | Hacked Cld. Q-thruster | -3/Testing | Hacked Centrium Light Armor Plating | -3/Testing | Scanalyzed Thermal Defense Suite | -2/Quarantine | Archive Adv. Remote Shield | -2/Quarantine | Archive Cld. Antigrav System | -2/Quarantine | Archive Adv. Matter Compressor | -2/Quarantine | Archive Adv. EM Disruption Field | -2/Quarantine | Archive Stealth Drone Bay | -2/Quarantine | Archive Exp. EM Disruption Field | -2/Quarantine | Archive Exp. Matter Compressor | -2/Quarantine | Archive Exp. Thermal Shield | -2/Quarantine | Archive Robot Schematics ------------------ G-50 Soldier | -4/Factory | Hacked Fabricated ------------ Adv. Hacking Suite | x1 | -5/Factory | Authchip Cld. Q-thruster | x1 | -3/Testing Repaired ---------- Cesium-ion Thruster | 12% | -8/Materials | Broken Power Sword | 25% | -6/Factory Gravmag System | 22% | -6/Factory Imp. Gravmag System | 64% | -5/Factory Power Sword | 65% | -5/Factory Lgt. Fission Core | 36% | -4/Factory Field Propulsion Array | 19% | -3/Testing Structural Scanner | 10% | -3/Testing Impulse Thruster | 20% | -3/Testing Alien Tech Used ----------------- Integrated Dissipator Sigix Broadsword Core Stripper Subatomic Replicator Matter Drive Supercharged Sigix Terminator Achievements -------------- Boltbath Killing Spree Launcher Specialist Rambo WMD Challenges ------------ None Game ------ Seed StorageChargeReplica Manual? 0 Play Time 05:33:33 Cumulative 283.6 hours Start 2025.06.26 @ 13:20:26 End 2025.06.26 @ 22:55:18 Sessions 5 Manual Loads 0 Difficulty Rogue Special Mode None Game No. 141 Rogue 141 Adventurer 0 Explorer 0 Win Type - Total 17 Types 6/0/5/1/4/1/0/0/0/0 Lore% 84 Gallery% 73 Achievement% 70 Wizard Run 0 Options --------- Layout 1 ASCII 0 Keyboard 0 Movement Numpad Keybinds 0 Fullscreen 1 Font 24/Smallcaps Map View 50x35 Zoom Use 0% Tactical HUD 1 Map Filters NONE Filters NONE Steam 1 RUN: b2ea1cb9-6bfb-48c2-83e1-11df43acf81b